Workbook

Sheet 数据
A1: 状态 | B1: 客户 | C1: 委托方 | D1: 运输公司 | E1: 车辆类型 | F1: 柜号 | G1: 柜型 | H1: 应收费用 | I1: 应付费用 | J1: 利润 | K1: 单吨 | L1: 货名 | M1: 提货地 | N1: 业务单号 | O1: 送货地 | P1: 提货日期 | Q1: 送货日期 | R1: 还柜日期 | S1: 厂家净重 | T1: 箱单重 | U1: 短溢吨 | V1: 短溢率（‰） | W1: 更新人 | X1: 更新时间 | Y1: 还柜地
A2: 业务完结 | B2: 广东华糖实业有限公司 | C2: 广东华糖实业有限公司 | D2: 江门市恒鑫物流有限公司 | E2: 集装箱 | F2: TLLU2751460 | G2: 20GP | H2: 670 | I2: 580 | J2: 90 | L2: 乳糖 | M2: 广东新会港国际货运码头有限公司 | N2: JMD20020005T01 | O2: 广东华糖实业有限公司 | P2: 2020-02-29 | Q2: 2020-02-29 00:00 | R2: 2020-02-29 | S2: 23.43 | T2: 23.43 | U2: =S2-T2 -> 0 | V2: =(S2-T2)/T2 -> 0 | W2: CL0200336 | X2: 2020-03-11 17:37 | Y2: 新会港
A3: 业务完结 | B3: 广东华糖实业有限公司 | C3: 广东华糖实业有限公司 | D3: 江门市恒鑫物流有限公司 | E3: 集装箱 | F3: TLLU2785732 | G3: 20GP | H3: 670 | I3: 580 | J3: 90 | L3: 乳糖 | M3: 广东新会港国际货运码头有限公司 | N3: JMD20020005T01 | O3: 广东华糖实业有限公司 | P3: 2020-02-29 | Q3: 2020-02-29 00:00 | R3: 2020-02-29 | S3: 23.36 | T3: 23.36 | U3: =S3-T3 -> 0 | V3: =(S3-T3)/T3 -> 0 | W3: CL0200336 | X3: 2020-03-11 17:37 | Y3: 新会港
A4: 业务完结 | B4: 广东华糖实业有限公司 | C4: 广东华糖实业有限公司 | D4: 江门市恒鑫物流有限公司 | E4: 集装箱 | F4: TCLU7609954 | G4: 20GP | H4: 670 | I4: 580 | J4: 90 | L4: 乳糖 | M4: 广东新会港国际货运码头有限公司 | N4: JMD20020005T01 | O4: 广东华糖实业有限公司 | P4: 2020-03-01 | Q4: 2020-03-01 00:00 | R4: 2020-03-01 | S4: 23.66 | T4: 23.66 | U4: 0 | V4: =(S4-T4)/T4 -> 0 | W4: CL0200336 | X4: 2020-03-11 17:37 | Y4: 新会港
A5: 业务完结 | B5: 广东华糖实业有限公司 | C5: 广东华糖实业有限公司 | D5: 江门市恒鑫物流有限公司 | E5: 集装箱 | F5: TLLU2792599 | G5: 20GP | H5: 670 | I5: 580 | J5: 90 | L5: 乳糖 | M5: 广东新会港国际货运码头有限公司 | N5: JMD20020005T01 | O5: 广东华糖实业有限公司 | P5: 2020-03-02 | Q5: 2020-03-02 00:00 | R5: 2020-03-02 | S5: 23.83 | T5: 23.83 | U5: 0 | V5: 0 | W5: CL0200336 | X5: 2020-03-11 17:37 | Y5: 新会港
A6: 业务完结 | B6: 广东华糖实业有限公司 | C6: 广东华糖实业有限公司 | D6: 江门市恒鑫物流有限公司 | E6: 集装箱 | F6: TLLU2782754 | G6: 20GP | H6: 670 | I6: 580 | J6: 90 | L6: 乳糖 | M6: 广东新会港国际货运码头有限公司 | N6: JMD20020005T01 | O6: 广东华糖实业有限公司 | P6: 2020-03-01 | Q6: 2020-03-01 00:00 | R6: 2020-03-01 | S6: 23.6 | T6: 23.6 | U6: 0 | V6: 0 | W6: CL0200336 | X6: 2020-03-11 17:37 | Y6: 新会港
A7: 业务完结 | B7: 广东华糖实业有限公司 | C7: 广东华糖实业有限公司 | D7: 江门市恒鑫物流有限公司 | E7: 集装箱 | F7: TLLU2753083 | G7: 20GP | H7: 670 | I7: 580 | J7: 90 | L7: 乳糖 | M7: 广东新会港国际货运码头有限公司 | N7: JMD20020005T01 | O7: 广东华糖实业有限公司 | P7: 2020-02-29 | Q7: 2020-02-29 00:00 | R7: 2020-02-29 | S7: 23.25 | T7: 23.25 | U7: 0 | V7: 0 | W7: CL0200336 | X7: 2020-03-11 17:37 | Y7: 新会港
A8: 业务完结 | B8: 广东华糖实业有限公司 | C8: 广东华糖实业有限公司 | D8: 江门市恒鑫物流有限公司 | E8: 集装箱 | F8: TLLU2788665 | G8: 20GP | H8: 670 | I8: 580 | J8: 90 | L8: 乳糖 | M8: 广东新会港国际货运码头有限公司 | N8: JMD20020005T01 | O8: 广东华糖实业有限公司 | P8: 2020-03-02 | Q8: 2020-03-02 00:00 | R8: 2020-03-02 | S8: 23.53 | T8: 23.53 | U8: 0 | V8: 0 | W8: CL0200336 | X8: 2020-03-11 17:37 | Y8: 新会港
A9: 业务完结 | B9: 广东华糖实业有限公司 | C9: 广东华糖实业有限公司 | D9: 江门市恒鑫物流有限公司 | E9: 集装箱 | F9: CMAU0973723 | G9: 20GP | H9: 670 | I9: 580 | J9: 90 | L9: 乳糖 | M9: 广东新会港国际货运码头有限公司 | N9: JMD20020005T01 | O9: 广东华糖实业有限公司 | P9: 2020-03-01 | Q9: 2020-03-01 00:00 | R9: 2020-03-01 | S9: 23.85 | T9: 23.85 | U9: 0 | V9: 0 | W9: CL0200336 | X9: 2020-03-11 17:37 | Y9: 新会港
A10: 业务完结 | B10: 广东华糖实业有限公司 | C10: 广东华糖实业有限公司 | D10: 江门市恒鑫物流有限公司 | E10: 集装箱 | F10: TLLU2779323 | G10: 20GP | H10: 670 | I10: 580 | J10: 90 | L10: 乳糖 | M10: 广东新会港国际货运码头有限公司 | N10: JMD20020005T01 | O10: 广东华糖实业有限公司 | P10: 2020-03-01 | Q10: 2020-03-01 00:00 | R10: 2020-03-01 | S10: 23.77 | T10: 23.77 | U10: 0 | V10: 0 | W10: CL0200336 | X10: 2020-03-11 17:37 | Y10: 新会港
A11: 业务完结 | B11: 广东华糖实业有限公司 | C11: 广东华糖实业有限公司 | D11: 江门市恒鑫物流有限公司 | E11: 集装箱 | F11: TLLU2780751 | G11: 20GP | H11: 670 | I11: 580 | J11: 90 | L11: 乳糖 | M11: 广东新会港国际货运码头有限公司 | N11: JMD20020005T01 | O11: 广东华糖实业有限公司 | P11: 2020-02-29 | Q11: 2020-02-29 00:00 | R11: 2020-02-29 | S11: 23.43 | T11: 23.43 | U11: 0 | V11: 0 | W11: CL0200336 | X11: 2020-03-11 17:37 | Y11: 新会港
A12: 业务完结 | B12: 江门市联顺仓储物流有限公司 | C12: 江门市联顺仓储物流有限公司 | D12: 恩平市华誉货运物流有限公司 | E12: 集装箱 | F12: YYCU0105070 | G12: 20GP | H12: 756 | I12: 745.32 | J12: 10.68 | L12: 玉米 | M12: 新会新港 | N12: JMD20030001T01 | O12: 江门市昊昌生物科技有限公司 | P12: 2020-03-03 | Q12: 2020-03-03 00:00 | R12: 2020-03-03 | S12: 28.3 | T12: 28.32 | U12: -0.02 | V12: -0.0007062146893 | W12: CL0200633 | X12: 2020-03-17 15:28 | Y12: 新会新港
A13: 业务完结 | B13: 江门市联顺仓储物流有限公司 | C13: 江门市联顺仓储物流有限公司 | D13: 恩平市华誉货运物流有限公司 | E13: 集装箱 | F13: TELU2348260 | G13: 20GP | H13: 756 | I13: 745.48 | J13: 10.52 | L13: 玉米 | M13: 新会新港 | N13: JMD20030001T01 | O13: 江门市昊昌生物科技有限公司 | P13: 2020-03-03 | Q13: 2020-03-03 00:00 | R13: 2020-03-03 | S13: 28.48 | T13: 28.48 | U13: 0 | V13: 0 | W13: CL0200633 | X13: 2020-03-17 15:28 | Y13: 新会新港
A14: 业务完结 | B14: 江门市联顺仓储物流有限公司 | C14: 江门市联顺仓储物流有限公司 | D14: 恩平市华誉货运物流有限公司 | E14: 集装箱 | F14: TEMU5481500 | G14: 20GP | H14: 756 | I14: 745.12 | J14: 10.88 | L14: 玉米 | M14: 新会新港 | N14: JMD20030001T01 | O14: 江门市昊昌生物科技有限公司 | P14: 2020-03-05 | Q14: 2020-03-05 00:00 | R14: 2020-03-05 | S14: 28.12 | T14: 28.12 | U14: 0 | V14: 0 | W14: CL0200633 | X14: 2020-03-17 15:28 | Y14: 新会新港
A15: 业务完结 | B15: 江门市联顺仓储物流有限公司 | C15: 江门市联顺仓储物流有限公司 | D15: 恩平市华誉货运物流有限公司 | E15: 集装箱 | F15: YYCU0172757 | G15: 20GP | H15: 756 | I15: 745.37 | J15: 10.63 | L15: 玉米 | M15: 新会新港 | N15: JMD20030001T01 | O15: 江门市昊昌生物科技有限公司 | P15: 2020-03-05 | Q15: 2020-03-05 00:00 | R15: 2020-03-05 | S15: 28.37 | T15: 28.37 | U15: 0 | V15: 0 | W15: CL0200633 | X15: 2020-03-17 15:28 | Y15: 新会新港
A16: 业务完结 | B16: 江门市联顺仓储物流有限公司 | C16: 江门市联顺仓储物流有限公司 | D16: 恩平市华誉货运物流有限公司 | E16: 集装箱 | F16: TELU2216773 | G16: 20GP | H16: 756 | I16: 743.95 | J16: 12.05 | L16: 玉米 | M16: 新会新港 | N16: JMD20030001T01 | O16: 江门市昊昌生物科技有限公司 | P16: 2020-03-04 | Q16: 2020-03-04 00:00 | R16: 2020-03-04 | S16: 26.9 | T16: 26.95 | U16: -0.05 | V16: -0.00185528757 | W16: CL0200633 | X16: 2020-03-17 15:28 | Y16: 新会新港
A17: 业务完结 | B17: 广东华糖实业有限公司 | C17: 广东华糖实业有限公司 | D17: 江门市恒鑫物流有限公司 | E17: 集装箱 | F17: DFSU1083678 | G17: 20GP | H17: 550 | I17: 450 | J17: 100 | L17: 白糖 | M17: 大昌行保税仓 | N17: JMD20030004T01 | O17: 广东新会港国际货运码头有限公司 | P17: 2020-03-05 | Q17: 2020-03-05 00:00 | R17: 2020-03-05 | S17: 25 | T17: 25 | U17: 0 | V17: 0 | W17: CL0200633 | X17: 2020-03-17 17:47 | Y17: 新会港
A18: 业务完结 | B18: 广东华糖实业有限公司 | C18: 广东华糖实业有限公司 | D18: 江门市恒鑫物流有限公司 | E18: 集装箱 | F18: FCIU5015493 | G18: 20GP | H18: 550 | I18: 450 | J18: 100 | L18: 白糖 | M18: 大昌行保税仓 | N18: JMD20030004T01 | O18: 广东新会港国际货运码头有限公司 | P18: 2020-03-05 | Q18: 2020-03-05 00:00 | R18: 2020-03-05 | S18: 25 | T18: 25 | U18: 0 | V18: 0 | W18: CL0200633 | X18: 2020-03-17 17:47 | Y18: 新会港
A19: 业务完结 | B19: 广东华糖实业有限公司 | C19: 广东华糖实业有限公司 | D19: 江门市恒鑫物流有限公司 | E19: 集装箱 | F19: TCKU2416940 | G19: 20GP | H19: 550 | I19: 450 | J19: 100 | L19: 白糖 | M19: 大昌行保税仓 | N19: JMD20030004T01 | O19: 广东新会港国际货运码头有限公司 | P19: 2020-03-05 | Q19: 2020-03-05 00:00 | R19: 2020-03-05 | S19: 25 | T19: 25 | U19: 0 | V19: 0 | W19: CL0200633 | X19: 2020-03-17 17:47 | Y19: 新会港
A20: 业务完结 | B20: 广东华糖实业有限公司 | C20: 广东华糖实业有限公司 | D20: 江门市恒鑫物流有限公司 | E20: 集装箱 | F20: CAIU3457986 | G20: 20GP | H20: 550 | I20: 450 | J20: 100 | L20: 白糖 | M20: 大昌行保税仓 | N20: JMD20030004T01 | O20: 广东新会港国际货运码头有限公司 | P20: 2020-03-05 | Q20: 2020-03-05 00:00 | R20: 2020-03-05 | S20: 25 | T20: 25 | U20: 0 | V20: 0 | W20: CL0200633 | X20: 2020-03-17 17:47 | Y20: 新会港
A21: 业务完结 | B21: 江门市丰实饲料有限公司 | C21: 江门市丰实饲料有限公司 | D21: 江门市新会区骏利物流运输有限公司 | E21: 集装箱 | F21: JZPU4080110 | G21: 20GP | H21: 400 | I21: 380 | J21: 20 | L21: 玉米 | M21: 双水码头 | N21: JMD20030006T01 | O21: 江门市英海饲料有限公司 | P21: 2020-01-02 | Q21: 2020-01-02 00:00 | R21: 2020-01-02 | S21: 28.01 | T21: 28.01 | U21: 0 | V21: 0 | W21: CL0200633 | X21: 2020-03-31 14:19 | Y21: 双水码头
A22: 业务完结 | B22: 江门市丰实饲料有限公司 | C22: 江门市丰实饲料有限公司 | D22: 江门市新会区骏利物流运输有限公司 | E22: 集装箱 | F22: JZPU4049584 | G22: 20GP | H22: 400 | I22: 380 | J22: 20 | L22: 玉米 | M22: 双水码头 | N22: JMD20030006T01 | O22: 江门市英海饲料有限公司 | P22: 2020-01-09 | Q22: 2020-01-09 00:00 | R22: 2020-01-09 | S22: 27.93 | T22: 27.93 | U22: 0 | V22: 0 | W22: CL0200633 | X22: 2020-03-31 14:19 | Y22: 双水码头
A23: 业务完结 | B23: 江门市丰实饲料有限公司 | C23: 江门市丰实饲料有限公司 | D23: 江门市新会区骏利物流运输有限公司 | E23: 集装箱 | F23: FTAU1212534 | G23: 20GP | H23: 400 | I23: 380 | J23: 20 | L23: 玉米 | M23: 双水码头 | N23: JMD20030006T01 | O23: 江门市英海饲料有限公司 | P23: 2020-01-02 | Q23: 2020-01-02 00:00 | R23: 2020-01-02 | S23: 28 | T23: 28 | U23: 0 | V23: 0 | W23: CL0200633 | X23: 2020-03-31 14:19 | Y23: 双水码头
A24: 业务完结 | B24: 江门市丰实饲料有限公司 | C24: 江门市丰实饲料有限公司 | D24: 江门市新会区骏利物流运输有限公司 | E24: 集装箱 | F24: JZPU2055417 | G24: 20GP | H24: 400 | I24: 380 | J24: 20 | L24: 玉米 | M24: 双水码头 | N24: JMD20030006T01 | O24: 江门市英海饲料有限公司 | P24: 2020-01-02 | Q24: 2020-01-02 00:00 | R24: 2020-01-02 | S24: 27.7 | T24: 27.7 | U24: 0 | V24: 0 | W24: CL0200633 | X24: 2020-03-31 14:19 | Y24: 双水码头
A25: 业务完结 | B25: 江门市丰实饲料有限公司 | C25: 江门市丰实饲料有限公司 | D25: 江门市新会区骏利物流运输有限公司 | E25: 集装箱 | F25: JZPU2031966 | G25: 20GP | H25: 400 | I25: 380 | J25: 20 | L25: 玉米 | M25: 双水码头 | N25: JMD20030006T01 | O25: 江门市英海饲料有限公司 | P25: 2020-01-02 | Q25: 2020-01-02 00:00 | R25: 2020-01-02 | S25: 27.65 | T25: 27.65 | U25: 0 | V25: 0 | W25: CL0200633 | X25: 2020-03-31 14:19 | Y25: 双水码头
A26: 业务完结 | B26: 江门市丰实饲料有限公司 | C26: 江门市丰实饲料有限公司 | D26: 江门市新会区骏利物流运输有限公司 | E26: 集装箱 | F26: JZPU1081392 | G26: 20GP | H26: 400 | I26: 380 | J26: 20 | L26: 玉米 | M26: 双水码头 | N26: JMD20030006T01 | O26: 江门市英海饲料有限公司 | P26: 2020-01-05 | Q26: 2020-01-05 00:00 | R26: 2020-01-05 | S26: 27.87 | T26: 27.87 | U26: 0 | V26: 0 | W26: CL0200633 | X26: 2020-03-31 14:19 | Y26: 双水码头
A27: 业务完结 | B27: 江门市丰实饲料有限公司 | C27: 江门市丰实饲料有限公司 | D27: 江门市新会区骏利物流运输有限公司 | E27: 集装箱 | F27: JZPU2156731 | G27: 20GP | H27: 400 | I27: 380 | J27: 20 | L27: 玉米 | M27: 双水码头 | N27: JMD20030006T01 | O27: 江门市英海饲料有限公司 | P27: 2020-01-05 | Q27: 2020-01-05 00:00 | R27: 2020-01-05 | S27: 27.64 | T27: 27.64 | U27: 0 | V27: 0 | W27: CL0200633 | X27: 2020-03-31 14:19 | Y27: 双水码头
A28: 业务完结 | B28: 江门市丰实饲料有限公司 | C28: 江门市丰实饲料有限公司 | D28: 江门市新会区骏利物流运输有限公司 | E28: 集装箱 | F28: JZPU2169744 | G28: 20GP | H28: 400 | I28: 380 | J28: 20 | L28: 玉米 | M28: 双水码头 | N28: JMD20030006T01 | O28: 江门市英海饲料有限公司 | P28: 2020-01-05 | Q28: 2020-01-05 00:00 | R28: 2020-01-05 | S28: 28.06 | T28: 28.06 | U28: 0 | V28: 0 | W28: CL0200633 | X28: 2020-03-31 14:19 | Y28: 双水码头
A29: 业务完结 | B29: 江门市丰实饲料有限公司 | C29: 江门市丰实饲料有限公司 | D29: 江门市新会区骏利物流运输有限公司 | E29: 集装箱 | F29: JZPU2108327 | G29: 20GP | H29: 400 | I29: 380 | J29: 20 | L29: 玉米 | M29: 双水码头 | N29: JMD20030006T01 | O29: 江门市英海饲料有限公司 | P29: 2020-01-06 | Q29: 2020-01-06 00:00 | R29: 2020-01-06 | S29: 27.23 | T29: 27.23 | U29: 0 | V29: 0 | W29: CL0200633 | X29: 2020-03-31 14:19 | Y29: 双水码头
A30: 业务完结 | B30: 江门市丰实饲料有限公司 | C30: 江门市丰实饲料有限公司 | D30: 江门市新会区骏利物流运输有限公司 | E30: 集装箱 | F30: JZPU1000003 | G30: 20GP | H30: 400 | I30: 380 | J30: 20 | L30: 玉米 | M30: 双水码头 | N30: JMD20030006T01 | O30: 江门市英海饲料有限公司 | P30: 2020-01-06 | Q30: 2020-01-06 00:00 | R30: 2020-01-06 | S30: 27.95 | T30: 27.95 | U30: 0 | V30: 0 | W30: CL0200633 | X30: 2020-03-31 14:19 | Y30: 双水码头
A31: 业务完结 | B31: 江门市丰实饲料有限公司 | C31: 江门市丰实饲料有限公司 | D31: 江门市新会区骏利物流运输有限公司 | E31: 集装箱 | F31: JZPU2031816 | G31: 20GP | H31: 400 | I31: 380 | J31: 20 | L31: 玉米 | M31: 双水码头 | N31: JMD20030006T01 | O31: 江门市英海饲料有限公司 | P31: 2020-01-06 | Q31: 2020-01-06 00:00 | R31: 2020-01-06 | S31: 27.67 | T31: 27.67 | U31: 0 | V31: 0 | W31: CL0200633 | X31: 2020-03-31 14:19 | Y31: 双水码头
A32: 业务完结 | B32: 江门市丰实饲料有限公司 | C32: 江门市丰实饲料有限公司 | D32: 江门市新会区骏利物流运输有限公司 | E32: 集装箱 | F32: JZPU4017294 | G32: 20GP | H32: 400 | I32: 380 | J32: 20 | L32: 玉米 | M32: 双水码头 | N32: JMD20030006T01 | O32: 江门市英海饲料有限公司 | P32: 2020-01-06 | Q32: 2020-01-06 00:00 | R32: 2020-01-06 | S32: 27.57 | T32: 27.57 | U32: 0 | V32: 0 | W32: CL0200633 | X32: 2020-03-31 14:19 | Y32: 双水码头
A33: 业务完结 | B33: 江门市丰实饲料有限公司 | C33: 江门市丰实饲料有限公司 | D33: 江门市新会区骏利物流运输有限公司 | E33: 集装箱 | F33: JZPU1017325 | G33: 20GP | H33: 400 | I33: 380 | J33: 20 | L33: 玉米 | M33: 双水码头 | N33: JMD20030006T01 | O33: 江门市英海饲料有限公司 | P33: 2020-01-06 | Q33: 2020-01-06 00:00 | R33: 2020-01-06 | S33: 28.07 | T33: 28.07 | U33: 0 | V33: 0 | W33: CL0200633 | X33: 2020-03-31 14:19 | Y33: 双水码头
A34: 业务完结 | B34: 江门市丰实饲料有限公司 | C34: 江门市丰实饲料有限公司 | D34: 江门市新会区骏利物流运输有限公司 | E34: 集装箱 | F34: JZPU4042717 | G34: 20GP | H34: 400 | I34: 380 | J34: 20 | L34: 玉米 | M34: 双水码头 | N34: JMD20030006T01 | O34: 江门市英海饲料有限公司 | P34: 2020-01-07 | Q34: 2020-01-07 00:00 | R34: 2020-01-07 | S34: 27.96 | T34: 27.96 | U34: 0 | V34: 0 | W34: CL0200633 | X34: 2020-03-31 14:19 | Y34: 双水码头
A35: 业务完结 | B35: 江门市丰实饲料有限公司 | C35: 江门市丰实饲料有限公司 | D35: 江门市新会区骏利物流运输有限公司 | E35: 集装箱 | F35: JZPU1097552 | G35: 20GP | H35: 400 | I35: 380 | J35: 20 | L35: 玉米 | M35: 双水码头 | N35: JMD20030006T01 | O35: 江门市英海饲料有限公司 | P35: 2020-01-07 | Q35: 2020-01-07 00:00 | R35: 2020-01-07 | S35: 28.14 | T35: 28.14 | U35: 0 | V35: 0 | W35: CL0200633 | X35: 2020-03-31 14:19 | Y35: 双水码头
A36: 业务完结 | B36: 江门市丰实饲料有限公司 | C36: 江门市丰实饲料有限公司 | D36: 江门市新会区骏利物流运输有限公司 | E36: 集装箱 | F36: JZPU2117458 | G36: 20GP | H36: 400 | I36: 380 | J36: 20 | L36: 玉米 | M36: 双水码头 | N36: JMD20030006T01 | O36: 江门市英海饲料有限公司 | P36: 2020-01-07 | Q36: 2020-01-07 00:00 | R36: 2020-01-07 | S36: 28.42 | T36: 28.42 | U36: 0 | V36: 0 | W36: CL0200633 | X36: 2020-03-31 14:19 | Y36: 双水码头
A37: 业务完结 | B37: 江门市丰实饲料有限公司 | C37: 江门市丰实饲料有限公司 | D37: 江门市新会区骏利物流运输有限公司 | E37: 集装箱 | F37: JZPU4013658 | G37: 20GP | H37: 400 | I37: 380 | J37: 20 | L37: 玉米 | M37: 双水码头 | N37: JMD20030006T01 | O37: 江门市英海饲料有限公司 | P37: 2020-01-07 | Q37: 2020-01-07 00:00 | R37: 2020-01-07 | S37: 27.78 | T37: 27.78 | U37: 0 | V37: 0 | W37: CL0200633 | X37: 2020-03-31 14:19 | Y37: 双水码头
A38: 业务完结 | B38: 江门市丰实饲料有限公司 | C38: 江门市丰实饲料有限公司 | D38: 江门市新会区骏利物流运输有限公司 | E38: 集装箱 | F38: JZPU1016838 | G38: 20GP | H38: 400 | I38: 380 | J38: 20 | L38: 玉米 | M38: 双水码头 | N38: JMD20030006T01 | O38: 江门市英海饲料有限公司 | P38: 2020-01-07 | Q38: 2020-01-07 00:00 | R38: 2020-01-07 | S38: 27.54 | T38: 27.54 | U38: 0 | V38: 0 | W38: CL0200633 | X38: 2020-03-31 14:19 | Y38: 双水码头
A39: 业务完结 | B39: 江门市丰实饲料有限公司 | C39: 江门市丰实饲料有限公司 | D39: 江门市新会区骏利物流运输有限公司 | E39: 集装箱 | F39: JZPU2125880 | G39: 20GP | H39: 400 | I39: 380 | J39: 20 | L39: 玉米 | M39: 双水码头 | N39: JMD20030006T01 | O39: 江门市英海饲料有限公司 | P39: 2020-01-08 | Q39: 2020-01-08 00:00 | R39: 2020-01-08 | S39: 28.04 | T39: 28.04 | U39: 0 | V39: 0 | W39: CL0200633 | X39: 2020-03-31 14:19 | Y39: 双水码头
A40: 业务完结 | B40: 江门市丰实饲料有限公司 | C40: 江门市丰实饲料有限公司 | D40: 江门市新会区骏利物流运输有限公司 | E40: 集装箱 | F40: JZPU1051802 | G40: 20GP | H40: 400 | I40: 380 | J40: 20 | L40: 玉米 | M40: 双水码头 | N40: JMD20030006T01 | O40: 江门市英海饲料有限公司 | P40: 2019-12-31 | Q40: 2019-12-31 00:00 | R40: 2019-12-31 | S40: 27.45 | T40: 27.45 | U40: 0 | V40: 0 | W40: CL0200633 | X40: 2020-03-31 14:19 | Y40: 双水码头
A41: 业务完结 | B41: 江门市丰实饲料有限公司 | C41: 江门市丰实饲料有限公司 | D41: 江门市新会区骏利物流运输有限公司 | E41: 集装箱 | F41: FTAU1206228 | G41: 20GP | H41: 400 | I41: 380 | J41: 20 | L41: 玉米 | M41: 双水码头 | N41: JMD20030006T01 | O41: 江门市英海饲料有限公司 | P41: 2019-12-31 | Q41: 2019-12-31 00:00 | R41: 2019-12-31 | S41: 27.99 | T41: 27.99 | U41: 0 | V41: 0 | W41: CL0200633 | X41: 2020-03-31 14:19 | Y41: 双水码头
A42: 业务完结 | B42: 江门市丰实饲料有限公司 | C42: 江门市丰实饲料有限公司 | D42: 江门市新会区骏利物流运输有限公司 | E42: 集装箱 | F42: JZPU1038170 | G42: 20GP | H42: 400 | I42: 380 | J42: 20 | L42: 玉米 | M42: 双水码头 | N42: JMD20030006T01 | O42: 江门市英海饲料有限公司 | P42: 2019-12-31 | Q42: 2019-12-31 00:00 | R42: 2019-12-31 | S42: 28.26 | T42: 28.26 | U42: 0 | V42: 0 | W42: CL0200633 | X42: 2020-03-31 14:19 | Y42: 双水码头
A43: 业务完结 | B43: 江门市丰实饲料有限公司 | C43: 江门市丰实饲料有限公司 | D43: 江门市新会区骏利物流运输有限公司 | E43: 集装箱 | F43: JZPU2127081 | G43: 20GP | H43: 400 | I43: 380 | J43: 20 | L43: 玉米 | M43: 双水码头 | N43: JMD20030006T01 | O43: 江门市英海饲料有限公司 | P43: 2020-01-08 | Q43: 2020-01-08 00:00 | R43: 2020-01-08 | S43: 27.81 | T43: 27.81 | U43: 0 | V43: 0 | W43: CL0200633 | X43: 2020-03-31 14:19 | Y43: 双水码头
A44: 业务完结 | B44: 江门市丰实饲料有限公司 | C44: 江门市丰实饲料有限公司 | D44: 江门市新会区骏利物流运输有限公司 | E44: 集装箱 | F44: JZPU1000831 | G44: 20GP | H44: 400 | I44: 380 | J44: 20 | L44: 玉米 | M44: 双水码头 | N44: JMD20030006T01 | O44: 江门市英海饲料有限公司 | P44: 2020-01-08 | Q44: 2020-01-08 00:00 | R44: 2020-01-08 | S44: 27.98 | T44: 27.98 | U44: 0 | V44: 0 | W44: CL0200633 | X44: 2020-03-31 14:19 | Y44: 双水码头
A45: 业务完结 | B45: 江门市丰实饲料有限公司 | C45: 江门市丰实饲料有限公司 | D45: 江门市新会区骏利物流运输有限公司 | E45: 集装箱 | F45: JZPU3007239 | G45: 20GP | H45: 400 | I45: 380 | J45: 20 | L45: 玉米 | M45: 双水码头 | N45: JMD20030006T01 | O45: 江门市英海饲料有限公司 | P45: 2020-01-08 | Q45: 2020-01-08 00:00 | R45: 2020-01-08 | S45: 27.99 | T45: 27.99 | U45: 0 | V45: 0 | W45: CL0200633 | X45: 2020-03-31 14:19 | Y45: 双水码头
A46: 业务完结 | B46: 江门市丰实饲料有限公司 | C46: 江门市丰实饲料有限公司 | D46: 江门市新会区骏利物流运输有限公司 | E46: 集装箱 | F46: JZPU1122300 | G46: 20GP | H46: 400 | I46: 380 | J46: 20 | L46: 玉米 | M46: 双水码头 | N46: JMD20030006T01 | O46: 江门市英海饲料有限公司 | P46: 2020-01-08 | Q46: 2020-01-08 00:00 | R46: 2020-01-08 | S46: 27.91 | T46: 27.91 | U46: 0 | V46: 0 | W46: CL0200633 | X46: 2020-03-31 14:19 | Y46: 双水码头
A47: 业务完结 | B47: 江门市丰实饲料有限公司 | C47: 江门市丰实饲料有限公司 | D47: 江门市新会区骏利物流运输有限公司 | E47: 集装箱 | F47: FTAU1195566 | G47: 20GP | H47: 400 | I47: 380 | J47: 20 | L47: 玉米 | M47: 双水码头 | N47: JMD20030006T01 | O47: 江门市英海饲料有限公司 | P47: 2020-01-05 | Q47: 2020-01-05 00:00 | R47: 2020-01-05 | S47: 27.52 | T47: 27.52 | U47: 0 | V47: 0 | W47: CL0200633 | X47: 2020-03-31 14:19 | Y47: 双水码头
A48: 业务完结 | B48: 江门市丰实饲料有限公司 | C48: 江门市丰实饲料有限公司 | D48: 江门市新会区骏利物流运输有限公司 | E48: 集装箱 | F48: JZPU1020611 | G48: 20GP | H48: 400 | I48: 380 | J48: 20 | L48: 玉米 | M48: 双水码头 | N48: JMD20030006T01 | O48: 江门市英海饲料有限公司 | P48: 2020-01-09 | Q48: 2020-01-09 00:00 | R48: 2020-01-09 | S48: 28.21 | T48: 28.21 | U48: 0 | V48: 0 | W48: CL0200633 | X48: 2020-03-31 14:19 | Y48: 双水码头
A49: 业务完结 | B49: 江门市丰实饲料有限公司 | C49: 江门市丰实饲料有限公司 | D49: 江门市新会区骏利物流运输有限公司 | E49: 集装箱 | F49: JZPU2018732 | G49: 20GP | H49: 400 | I49: 380 | J49: 20 | L49: 玉米 | M49: 双水码头 | N49: JMD20030006T01 | O49: 江门市英海饲料有限公司 | P49: 2020-01-09 | Q49: 2020-01-09 00:00 | R49: 2020-01-09 | S49: 28.09 | T49: 28.09 | U49: 0 | V49: 0 | W49: CL0200633 | X49: 2020-03-31 14:19 | Y49: 双水码头
A50: 业务完结 | B50: 江门市丰实饲料有限公司 | C50: 江门市丰实饲料有限公司 | D50: 江门市新会区骏利物流运输有限公司 | E50: 集装箱 | F50: JZPU4073575 | G50: 20GP | H50: 400 | I50: 380 | J50: 20 | L50: 玉米 | M50: 双水码头 | N50: JMD20030006T01 | O50: 江门市英海饲料有限公司 | P50: 2020-01-09 | Q50: 2020-01-09 00:00 | R50: 2020-01-09 | S50: 28.23 | T50: 28.23 | U50: 0 | V50: 0 | W50: CL0200633 | X50: 2020-03-31 14:19 | Y50: 双水码头
A51: 业务完结 | B51: 江门市丰实饲料有限公司 | C51: 江门市丰实饲料有限公司 | D51: 江门市新会区骏利物流运输有限公司 | E51: 集装箱 | F51: JZPU2145399 | G51: 20GP | H51: 400 | I51: 380 | J51: 20 | L51: 玉米 | M51: 双水码头 | N51: JMD20030006T01 | O51: 江门市英海饲料有限公司 | P51: 2020-01-09 | Q51: 2020-01-09 00:00 | R51: 2020-01-09 | S51: 27.61 | T51: 27.61 | U51: 0 | V51: 0 | W51: CL0200633 | X51: 2020-03-31 14:19 | Y51: 双水码头
A52: 业务完结 | B52: 江门市丰实饲料有限公司 | C52: 江门市丰实饲料有限公司 | D52: 江门市新会区骏利物流运输有限公司 | E52: 集装箱 | F52: FTAU1223164 | G52: 20GP | H52: 400 | I52: 380 | J52: 20 | L52: 玉米 | M52: 双水码头 | N52: JMD20030006T01 | O52: 江门市英海饲料有限公司 | P52: 2020-01-02 | Q52: 2020-01-02 00:00 | R52: 2020-01-02 | S52: 27.8 | T52: 27.8 | U52: 0 | V52: 0 | W52: CL0200633 | X52: 2020-03-31 14:19 | Y52: 双水码头
A53: 业务完结 | B53: 广东华糖实业有限公司 | C53: 广东华糖实业有限公司 | D53: 江门市恒鑫物流有限公司 | E53: 集装箱 | F53: CSLU2025530 | G53: 20GP | H53: 1660 | I53: 1420 | J53: 240 | L53: 白糖 | M53: 大昌行保税仓 | N53: JMD20030007T01 | O53: 广东华糖实业有限公司 | P53: 2020-03-12 | Q53: 2020-03-12 00:00 | R53: 2020-03-12 | S53: 25 | T53: 25 | U53: 0 | V53: 0 | W53: CL0200633 | X53: 2020-03-17 16:29 | Y53: 新会新港
A54: 业务完结 | B54: 广东华糖实业有限公司 | C54: 广东华糖实业有限公司 | D54: 江门市恒鑫物流有限公司 | E54: 集装箱 | F54: CSLU1928012 | G54: 20GP | H54: 550 | I54: 450 | J54: 100 | L54: 白糖 | M54: 大昌行保税仓 | N54: JMD20030007T01 | O54: 广东华糖实业有限公司 | P54: 2020-03-12 | Q54: 2020-03-12 00:00 | R54: 2020-03-12 | S54: 25 | T54: 25 | U54: 0 | V54: 0 | W54: CL0200633 | X54: 2020-03-17 16:29 | Y54: 新会新港
A55: 业务完结 | B55: 广东华糖实业有限公司 | C55: 广东华糖实业有限公司 | D55: 江门市恒鑫物流有限公司 | E55: 集装箱 | F55: TRHU3764470 | G55: 20GP | H55: 550 | I55: 450 | J55: 100 | L55: 白糖 | M55: 大昌行保税仓 | N55: JMD20030007T01 | O55: 广东华糖实业有限公司 | P55: 2020-03-12 | Q55: 2020-03-12 00:00 | R55: 2020-03-12 | S55: 25 | T55: 25 | U55: 0 | V55: 0 | W55: CL0200633 | X55: 2020-03-17 16:29 | Y55: 新会新港
A56: 业务完结 | B56: 广东华糖实业有限公司 | C56: 广东华糖实业有限公司 | D56: 江门市恒鑫物流有限公司 | E56: 集装箱 | F56: TCLU6964260 | G56: 20GP | H56: 550 | I56: 450 | J56: 100 | L56: 白糖 | M56: 大昌行保税仓 | N56: JMD20030007T01 | O56: 广东华糖实业有限公司 | P56: 2020-03-12 | Q56: 2020-03-12 00:00 | R56: 2020-03-12 | S56: 25 | T56: 25 | U56: 0 | V56: 0 | W56: CL0200633 | X56: 2020-03-17 16:29 | Y56: 新会新港
A57: 业务完结 | B57: 广东华糖实业有限公司 | C57: 广东华糖实业有限公司 | D57: 江门市恒鑫物流有限公司 | E57: 集装箱 | F57: TLLU2047127 | G57: 20GP | H57: 610 | I57: 520 | J57: 90 | L57: 白糖 | M57: 新会新港 | N57: JMD20030010T01 | O57: 广东华糖实业有限公司 | P57: 2020-03-19 | Q57: 2020-03-19 00:00 | R57: 2020-03-19 | S57: 25 | T57: 25 | U57: 0 | V57: 0 | W57: CL0200633 | X57: 2020-03-23 11:28 | Y57: 新会港
A58: 业务完结 | B58: 广东华糖实业有限公司 | C58: 广东华糖实业有限公司 | D58: 江门市恒鑫物流有限公司 | E58: 集装箱 | F58: FCIU5068148 | G58: 20GP | H58: 610 | I58: 520 | J58: 90 | L58: 白糖 | M58: 新会新港 | N58: JMD20030010T01 | O58: 广东华糖实业有限公司 | P58: 2020-03-19 | Q58: 2020-03-19 00:00 | R58: 2020-03-19 | S58: 25 | T58: 25 | U58: 0 | V58: 0 | W58: CL0200633 | X58: 2020-03-23 11:28 | Y58: 新会港
A59: 业务完结 | B59: 广东华糖实业有限公司 | C59: 广东华糖实业有限公司 | D59: 江门市恒鑫物流有限公司 | E59: 集装箱 | F59: CSNU1770480 | G59: 20GP | H59: 610 | I59: 520 | J59: 90 | L59: 白糖 | M59: 新会新港 | N59: JMD20030010T01 | O59: 广东华糖实业有限公司 | P59: 2020-03-19 | Q59: 2020-03-19 00:00 | R59: 2020-03-19 | S59: 25 | T59: 25 | U59: 0 | V59: 0 | W59: CL0200633 | X59: 2020-03-23 11:28 | Y59: 新会港
A60: 业务完结 | B60: 广东华糖实业有限公司 | C60: 广东华糖实业有限公司 | D60: 江门市恒鑫物流有限公司 | E60: 集装箱 | F60: CSLU1902424 | G60: 20GP | H60: 610 | I60: 520 | J60: 90 | L60: 白糖 | M60: 新会新港 | N60: JMD20030010T01 | O60: 广东华糖实业有限公司 | P60: 2020-03-19 | Q60: 2020-03-19 00:00 | R60: 2020-03-19 | S60: 25 | T60: 25 | U60: 0 | V60: 0 | W60: CL0200633 | X60: 2020-03-23 11:28 | Y60: 新会港
A61: 业务完结 | B61: 广东华糖实业有限公司 | C61: 广东华糖实业有限公司 | D61: 江门市恒鑫物流有限公司 | E61: 集装箱 | F61: CSNU1536739 | G61: 20GP | H61: 550 | I61: 450 | J61: 100 | L61: 白糖 | M61: 新会新港 | N61: JMD20030010T01 | O61: 广东华糖实业有限公司 | P61: 2020-03-19 | Q61: 2020-03-19 00:00 | R61: 2020-03-19 | S61: 25 | T61: 25 | U61: 0 | V61: 0 | W61: CL0200633 | X61: 2020-03-23 11:28 | Y61: 新会港
A62: 业务完结 | B62: 广东华糖实业有限公司 | C62: 广东华糖实业有限公司 | D62: 江门市恒鑫物流有限公司 | E62: 集装箱 | F62: SEGU1848633 | G62: 20GP | H62: 670 | I62: 580 | J62: 90 | L62: 乳糖 | M62: 广东新会港国际货运码头有限公司 | N62: JMD20030011T01 | O62: 广东华糖实业有限公司 | P62: 2020-03-22 | Q62: 2020-03-22 00:00 | R62: 2020-03-22 | S62: 24.09 | T62: 24.09 | U62: 0 | V62: 0 | W62: CL0200336 | X62: 2020-03-24 10:28 | Y62: 新会港
A63: 业务完结 | B63: 广东华糖实业有限公司 | C63: 广东华糖实业有限公司 | D63: 江门市恒鑫物流有限公司 | E63: 集装箱 | F63: SEGU2990724 | G63: 20GP | H63: 670 | I63: 580 | J63: 90 | L63: 乳糖 | M63: 广东新会港国际货运码头有限公司 | N63: JMD20030011T01 | O63: 广东华糖实业有限公司 | P63: 2020-03-22 | Q63: 2020-03-22 00:00 | R63: 2020-03-22 | S63: 24.35 | T63: 24.35 | U63: 0 | V63: 0 | W63: CL0200336 | X63: 2020-03-24 10:28 | Y63: 新会港
A64: 业务完结 | B64: 广东华糖实业有限公司 | C64: 广东华糖实业有限公司 | D64: 江门市恒鑫物流有限公司 | E64: 集装箱 | F64: CAIU6933577 | G64: 20GP | H64: 670 | I64: 580 | J64: 90 | L64: 乳糖 | M64: 广东新会港国际货运码头有限公司 | N64: JMD20030011T01 | O64: 广东华糖实业有限公司 | P64: 2020-03-22 | Q64: 2020-03-22 00:00 | R64: 2020-03-22 | S64: 23.66 | T64: 23.66 | U64: 0 | V64: 0 | W64: CL0200336 | X64: 2020-03-24 10:28 | Y64: 新会港
A65: 业务完结 | B65: 广东华糖实业有限公司 | C65: 广东华糖实业有限公司 | D65: 江门市恒鑫物流有限公司 | E65: 集装箱 | F65: BMOU1309866 | G65: 20GP | H65: 670 | I65: 580 | J65: 90 | L65: 乳糖 | M65: 广东新会港国际货运码头有限公司 | N65: JMD20030011T01 | O65: 广东华糖实业有限公司 | P65: 2020-03-22 | Q65: 2020-03-22 00:00 | R65: 2020-03-22 | S65: 23.71 | T65: 23.71 | U65: 0 | V65: 0 | W65: CL0200336 | X65: 2020-03-24 10:28 | Y65: 新会港
A66: 业务完结 | B66: 广东华糖实业有限公司 | C66: 广东华糖实业有限公司 | D66: 江门市恒鑫物流有限公司 | E66: 集装箱 | F66: SEGU3156470 | G66: 20GP | H66: 670 | I66: 580 | J66: 90 | L66: 乳糖 | M66: 广东新会港国际货运码头有限公司 | N66: JMD20030011T01 | O66: 广东华糖实业有限公司 | P66: 2020-03-23 | Q66: 2020-03-23 00:00 | R66: 2020-03-23 | S66: 23.74 | T66: 23.74 | U66: 0 | V66: 0 | W66: CL0200336 | X66: 2020-03-24 10:28 | Y66: 新会港
A67: 业务完结 | B67: 广东华糖实业有限公司 | C67: 广东华糖实业有限公司 | D67: 江门市恒鑫物流有限公司 | E67: 集装箱 | F67: KMTU7433063 | G67: 20GP | H67: 670 | I67: 580 | J67: 90 | L67: 乳糖 | M67: 广东新会港国际货运码头有限公司 | N67: JMD20030011T01 | O67: 广东华糖实业有限公司 | P67: 2020-03-23 | Q67: 2020-03-23 00:00 | R67: 2020-03-23 | S67: 24.05 | T67: 24.05 | U67: =S67-T67 -> 0 | V67: =(S67-T67)/T67 -> 0 | W67: CL0200336 | X67: 2020-03-24 10:28 | Y67: 新会港
A68: 业务完结 | B68: 广东华糖实业有限公司 | C68: 广东华糖实业有限公司 | D68: 江门市恒鑫物流有限公司 | E68: 集装箱 | F68: SEGU3348540 | G68: 20GP | H68: 670 | I68: 580 | J68: 90 | L68: 乳糖 | M68: 广东新会港国际货运码头有限公司 | N68: JMD20030011T01 | O68: 广东华糖实业有限公司 | P68: 2020-03-23 | Q68: 2020-03-23 00:00 | R68: 2020-03-23 | S68: 23.48 | T68: 23.48 | U68: 0 | V68: 0 | W68: CL0200336 | X68: 2020-03-24 10:28 | Y68: 新会港
A69: 业务完结 | B69: 广东华糖实业有限公司 | C69: 广东华糖实业有限公司 | D69: 江门市恒鑫物流有限公司 | E69: 集装箱 | F69: BEAU2937902 | G69: 20GP | H69: 670 | I69: 580 | J69: 90 | L69: 乳糖 | M69: 广东新会港国际货运码头有限公司 | N69: JMD20030011T01 | O69: 广东华糖实业有限公司 | P69: 2020-03-19 | Q69: 2020-03-19 00:00 | R69: 2020-03-19 | S69: 23.88 | T69: 23.88 | U69: 0 | V69: 0 | W69: CL0200336 | X69: 2020-03-24 10:28 | Y69: 新会港
A70: 业务完结 | B70: 广东华糖实业有限公司 | C70: 广东华糖实业有限公司 | D70: 江门市恒鑫物流有限公司 | E70: 集装箱 | F70: FTAU1097786 | G70: 20GP | H70: 670 | I70: 580 | J70: 90 | L70: 乳糖 | M70: 广东新会港国际货运码头有限公司 | N70: JMD20030011T01 | O70: 广东华糖实业有限公司 | P70: 2020-03-19 | Q70: 2020-03-19 00:00 | R70: 2020-03-19 | S70: 24 | T70: 24 | U70: 0 | V70: 0 | W70: CL0200336 | X70: 2020-03-24 10:28 | Y70: 新会港
A71: 业务完结 | B71: 广东华糖实业有限公司 | C71: 广东华糖实业有限公司 | D71: 江门市恒鑫物流有限公司 | E71: 集装箱 | F71: KMTU7441074 | G71: 20GP | H71: 670 | I71: 580 | J71: 90 | L71: 乳糖 | M71: 广东新会港国际货运码头有限公司 | N71: JMD20030011T01 | O71: 广东华糖实业有限公司 | P71: 2020-03-23 | Q71: 2020-03-23 00:00 | R71: 2020-03-23 | S71: 23.89 | T71: 23.89 | U71: 0 | V71: 0 | W71: CL0200336 | X71: 2020-03-24 10:28 | Y71: 新会港
A72: 业务完结 | B72: 广东华糖实业有限公司 | C72: 广东华糖实业有限公司 | D72: 江门市恒鑫物流有限公司 | E72: 集装箱 | F72: SEGU3253803 | G72: 20GP | H72: 670 | I72: 580 | J72: 90 | L72: 乳糖 | M72: 广东新会港国际货运码头有限公司 | N72: JMD20030011T01 | O72: 广东华糖实业有限公司 | P72: 2020-03-19 | Q72: 2020-03-19 00:00 | R72: 2020-03-19 | S72: 23.82 | T72: 23.82 | U72: 0 | V72: 0 | W72: CL0200336 | X72: 2020-03-24 10:28 | Y72: 新会港
A73: 业务完结 | B73: 广东华糖实业有限公司 | C73: 广东华糖实业有限公司 | D73: 江门市恒鑫物流有限公司 | E73: 集装箱 | F73: CAIU6919706 | G73: 20GP | H73: 670 | I73: 580 | J73: 90 | L73: 乳糖 | M73: 广东新会港国际货运码头有限公司 | N73: JMD20030011T01 | O73: 广东华糖实业有限公司 | P73: 2020-03-19 | Q73: 2020-03-19 00:00 | R73: 2020-03-19 | S73: 23.92 | T73: 23.92 | U73: 0 | V73: 0 | W73: CL0200336 | X73: 2020-03-24 10:28 | Y73: 新会港
A74: 业务完结 | B74: 广东华糖实业有限公司 | C74: 广东华糖实业有限公司 | D74: 江门市恒鑫物流有限公司 | E74: 集装箱 | F74: TEMU0394126 | G74: 20GP | H74: 670 | I74: 580 | J74: 90 | L74: 乳糖 | M74: 广东新会港国际货运码头有限公司 | N74: JMD20030011T01 | O74: 广东华糖实业有限公司 | P74: 2020-03-20 | Q74: 2020-03-20 00:00 | R74: 2020-03-20 | S74: 23.82 | T74: 23.82 | U74: 0 | V74: 0 | W74: CL0200336 | X74: 2020-03-24 10:28 | Y74: 新会港
A75: 业务完结 | B75: 广东华糖实业有限公司 | C75: 广东华糖实业有限公司 | D75: 江门市恒鑫物流有限公司 | E75: 集装箱 | F75: SEGU2390571 | G75: 20GP | H75: 670 | I75: 580 | J75: 90 | L75: 乳糖 | M75: 广东新会港国际货运码头有限公司 | N75: JMD20030011T01 | O75: 广东华糖实业有限公司 | P75: 2020-03-20 | Q75: 2020-03-20 00:00 | R75: 2020-03-20 | S75: 24.11 | T75: 24.11 | U75: 0 | V75: 0 | W75: CL0200336 | X75: 2020-03-24 10:28 | Y75: 新会港
A76: 业务完结 | B76: 广东华糖实业有限公司 | C76: 广东华糖实业有限公司 | D76: 江门市恒鑫物流有限公司 | E76: 集装箱 | F76: BEAU2920983 | G76: 20GP | H76: 670 | I76: 580 | J76: 90 | L76: 乳糖 | M76: 广东新会港国际货运码头有限公司 | N76: JMD20030011T01 | O76: 广东华糖实业有限公司 | P76: 2020-03-20 | Q76: 2020-03-20 00:00 | R76: 2020-03-20 | S76: 23.71 | T76: 23.71 | U76: 0 | V76: 0 | W76: CL0200336 | X76: 2020-03-24 10:28 | Y76: 新会港
A77: 业务完结 | B77: 广东华糖实业有限公司 | C77: 广东华糖实业有限公司 | D77: 江门市恒鑫物流有限公司 | E77: 集装箱 | F77: FTAU1139177 | G77: 20GP | H77: 670 | I77: 580 | J77: 90 | L77: 乳糖 | M77: 广东新会港国际货运码头有限公司 | N77: JMD20030011T01 | O77: 广东华糖实业有限公司 | P77: 2020-03-20 | Q77: 2020-03-20 00:00 | R77: 2020-03-20 | S77: 24.23 | T77: 24.23 | U77: 0 | V77: 0 | W77: CL0200336 | X77: 2020-03-24 10:28 | Y77: 新会港
A78: 业务完结 | B78: 广东华糖实业有限公司 | C78: 广东华糖实业有限公司 | D78: 江门市恒鑫物流有限公司 | E78: 集装箱 | F78: FTAU1055311 | G78: 20GP | H78: 670 | I78: 580 | J78: 90 | L78: 乳糖 | M78: 广东新会港国际货运码头有限公司 | N78: JMD20030011T01 | O78: 广东华糖实业有限公司 | P78: 2020-03-21 | Q78: 2020-03-21 00:00 | R78: 2020-03-21 | S78: 23.73 | T78: 23.73 | U78: 0 | V78: 0 | W78: CL0200336 | X78: 2020-03-24 10:28 | Y78: 新会港
A79: 业务完结 | B79: 广东华糖实业有限公司 | C79: 广东华糖实业有限公司 | D79: 江门市恒鑫物流有限公司 | E79: 集装箱 | F79: CAIU6770187 | G79: 20GP | H79: 670 | I79: 580 | J79: 90 | L79: 乳糖 | M79: 广东新会港国际货运码头有限公司 | N79: JMD20030011T01 | O79: 广东华糖实业有限公司 | P79: 2020-03-21 | Q79: 2020-03-21 00:00 | R79: 2020-03-21 | S79: 23.92 | T79: 23.92 | U79: 0 | V79: 0 | W79: CL0200336 | X79: 2020-03-24 10:28 | Y79: 新会港
A80: 业务完结 | B80: 广东华糖实业有限公司 | C80: 广东华糖实业有限公司 | D80: 江门市恒鑫物流有限公司 | E80: 集装箱 | F80: FTAU1103132 | G80: 20GP | H80: 670 | I80: 580 | J80: 90 | L80: 乳糖 | M80: 广东新会港国际货运码头有限公司 | N80: JMD20030011T01 | O80: 广东华糖实业有限公司 | P80: 2020-03-21 | Q80: 2020-03-21 00:00 | R80: 2020-03-21 | S80: 24.25 | T80: 24.25 | U80: 0 | V80: 0 | W80: CL0200336 | X80: 2020-03-24 10:28 | Y80: 新会港
A81: 业务完结 | B81: 广东华糖实业有限公司 | C81: 广东华糖实业有限公司 | D81: 江门市恒鑫物流有限公司 | E81: 集装箱 | F81: FCIU6139903 | G81: 20GP | H81: 670 | I81: 580 | J81: 90 | L81: 乳糖 | M81: 广东新会港国际货运码头有限公司 | N81: JMD20030011T01 | O81: 广东华糖实业有限公司 | P81: 2020-03-21 | Q81: 2020-03-21 00:00 | R81: 2020-03-21 | S81: 24.2 | T81: 24.2 | U81: 0 | V81: 0 | W81: CL0200336 | X81: 2020-03-24 10:28 | Y81: 新会港
A82: 业务完结 | B82: 江门市联顺仓储物流有限公司 | C82: 江门市联顺仓储物流有限公司 | D82: 恩平市华誉货运物流有限公司 | E82: 集装箱 | F82: TELU2239151 | G82: 20GP | H82: 756 | I82: 744.1 | J82: 11.9 | L82: 玉米 | M82: 新会新港 | N82: JMD20030012T01 | O82: 江门市昊昌生物科技有限公司 | P82: 2020-03-22 | Q82: 2020-03-22 00:00 | R82: 2020-03-22 | S82: 27 | T82: 27.1 | U82: -0.1 | V82: -0.0036900369 | W82: CL0200633 | X82: 2020-03-25 10:11 | Y82: 新会新港
A83: 业务完结 | B83: 江门市联顺仓储物流有限公司 | C83: 江门市联顺仓储物流有限公司 | D83: 恩平市华誉货运物流有限公司 | E83: 集装箱 | F83: FCIU6112570 | G83: 20GP | H83: 756 | I83: 745.07 | J83: 10.93 | L83: 玉米 | M83: 新会新港 | N83: JMD20030012T01 | O83: 江门市昊昌生物科技有限公司 | P83: 2020-03-20 | Q83: 2020-03-20 00:00 | R83: 2020-03-20 | S83: 28.05 | T83: 28.07 | U83: -0.02 | V83: -0.0007125044532 | W83: CL0200633 | X83: 2020-03-25 10:11 | Y83: 新会新港
A84: 业务完结 | B84: 江门市联顺仓储物流有限公司 | C84: 江门市联顺仓储物流有限公司 | D84: 恩平市华誉货运物流有限公司 | E84: 集装箱 | F84: GCXU2049466 | G84: 20GP | H84: 756 | I84: 745.37 | J84: 10.63 | L84: 玉米 | M84: 新会新港 | N84: JMD20030012T01 | O84: 江门市昊昌生物科技有限公司 | P84: 2020-03-20 | Q84: 2020-03-20 00:00 | R84: 2020-03-20 | S84: 28.34 | T84: 28.37 | U84: -0.03 | V84: -0.001057455058 | W84: CL0200633 | X84: 2020-03-25 10:11 | Y84: 新会新港
A85: 业务完结 | B85: 江门市联顺仓储物流有限公司 | C85: 江门市联顺仓储物流有限公司 | D85: 恩平市华誉货运物流有限公司 | E85: 集装箱 | F85: CAIU6454717 | G85: 20GP | H85: 756 | I85: 745.38 | J85: 10.62 | L85: 玉米 | M85: 新会新港 | N85: JMD20030012T01 | O85: 江门市昊昌生物科技有限公司 | P85: 2020-03-23 | Q85: 2020-03-23 00:00 | R85: 2020-03-23 | S85: 28.38 | T85: 28.38 | U85: 0 | V85: 0 | W85: CL0200633 | X85: 2020-03-25 10:11 | Y85: 新会新港
A86: 业务完结 | B86: 江门市联顺仓储物流有限公司 | C86: 江门市联顺仓储物流有限公司 | D86: 恩平市华誉货运物流有限公司 | E86: 集装箱 | F86: XYLU1071432 | G86: 20GP | H86: 756 | I86: 745.53 | J86: 10.47 | L86: 玉米 | M86: 新会新港 | N86: JMD20030012T01 | O86: 江门市昊昌生物科技有限公司 | P86: 2020-03-23 | Q86: 2020-03-23 00:00 | R86: 2020-03-23 | S86: 28.53 | T86: 28.53 | U86: 0 | V86: 0 | W86: CL0200633 | X86: 2020-03-25 10:11 | Y86: 新会新港
A87: 业务完结 | B87: 广东华糖实业有限公司 | C87: 广东华糖实业有限公司 | D87: 江门市恒鑫物流有限公司 | E87: 集装箱 | F87: FTAU1050156 | G87: 20GP | H87: 670 | I87: 580 | J87: 90 | L87: 乳糖 | M87: 广东新会港国际货运码头有限公司 | N87: JMD20030013T01 | O87: 广东华糖实业有限公司 | P87: 2020-03-26 | Q87: 2020-03-26 00:00 | R87: 2020-03-26 | S87: 23.84 | T87: 23.84 | U87: 0 | V87: 0 | W87: CL0200633 | X87: 2020-03-27 10:25 | Y87: 新会港
A88: 业务完结 | B88: 广东华糖实业有限公司 | C88: 广东华糖实业有限公司 | D88: 江门市恒鑫物流有限公司 | E88: 集装箱 | F88: FCIU6518682 | G88: 20GP | H88: 670 | I88: 580 | J88: 90 | L88: 乳糖 | M88: 广东新会港国际货运码头有限公司 | N88: JMD20030013T01 | O88: 广东华糖实业有限公司 | P88: 2020-03-26 | Q88: 2020-03-26 00:00 | R88: 2020-03-26 | S88: 23.74 | T88: 23.74 | U88: 0 | V88: 0 | W88: CL0200633 | X88: 2020-03-27 10:25 | Y88: 新会港
A89: 业务完结 | B89: 广东华糖实业有限公司 | C89: 广东华糖实业有限公司 | D89: 江门市恒鑫物流有限公司 | E89: 集装箱 | F89: FTAU1053540 | G89: 20GP | H89: 670 | I89: 580 | J89: 90 | L89: 乳糖 | M89: 广东新会港国际货运码头有限公司 | N89: JMD20030013T01 | O89: 广东华糖实业有限公司 | P89: 2020-03-26 | Q89: 2020-03-26 00:00 | R89: 2020-03-26 | S89: 23.95 | T89: 23.95 | U89: 0 | V89: 0 | W89: CL0200633 | X89: 2020-03-27 10:25 | Y89: 新会港
A90: 业务完结 | B90: 广东华糖实业有限公司 | C90: 广东华糖实业有限公司 | D90: 江门市恒鑫物流有限公司 | E90: 集装箱 | F90: SEGU3381888 | G90: 20GP | H90: 670 | I90: 580 | J90: 90 | L90: 乳糖 | M90: 广东新会港国际货运码头有限公司 | N90: JMD20030013T01 | O90: 广东华糖实业有限公司 | P90: 2020-03-26 | Q90: 2020-03-26 00:00 | R90: 2020-03-26 | S90: 24.36 | T90: 24.36 | U90: 0 | V90: 0 | W90: CL0200633 | X90: 2020-03-27 10:25 | Y90: 新会港
A91: 业务完结 | B91: 广东华糖实业有限公司 | C91: 广东华糖实业有限公司 | D91: 江门市恒鑫物流有限公司 | E91: 集装箱 | F91: FTAU1137127 | G91: 20GP | H91: 670 | I91: 580 | J91: 90 | L91: 乳糖 | M91: 广东新会港国际货运码头有限公司 | N91: JMD20030013T01 | O91: 广东华糖实业有限公司 | P91: 2020-03-26 | Q91: 2020-03-26 00:00 | R91: 2020-03-26 | S91: 24.33 | T91: 24.33 | U91: 0 | V91: 0 | W91: CL0200633 | X91: 2020-03-27 10:25 | Y91: 新会港
A92: 业务完结 | B92: 广东华糖实业有限公司 | C92: 广东华糖实业有限公司 | D92: 江门市恒鑫物流有限公司 | E92: 集装箱 | F92: SEGU2273277 | G92: 20GP | H92: 670 | I92: 580 | J92: 90 | L92: 乳糖 | M92: 广东新会港国际货运码头有限公司 | N92: JMD20030013T01 | O92: 广东华糖实业有限公司 | P92: 2020-03-26 | Q92: 2020-03-26 00:00 | R92: 2020-03-26 | S92: 24.02 | T92: 24.02 | U92: 0 | V92: 0 | W92: CL0200633 | X92: 2020-03-27 10:25 | Y92: 新会港
A93: 业务完结 | B93: 广东华糖实业有限公司 | C93: 广东华糖实业有限公司 | D93: 江门市恒鑫物流有限公司 | E93: 集装箱 | F93: FTAU1108010 | G93: 20GP | H93: 670 | I93: 580 | J93: 90 | L93: 乳糖 | M93: 广东新会港国际货运码头有限公司 | N93: JMD20030013T01 | O93: 广东华糖实业有限公司 | P93: 2020-03-26 | Q93: 2020-03-26 00:00 | R93: 2020-03-26 | S93: 23.74 | T93: 23.74 | U93: 0 | V93: 0 | W93: CL0200633 | X93: 2020-03-27 10:25 | Y93: 新会港
A94: 业务完结 | B94: 广东华糖实业有限公司 | C94: 广东华糖实业有限公司 | D94: 江门市恒鑫物流有限公司 | E94: 集装箱 | F94: SEGU3220311 | G94: 20GP | H94: 670 | I94: 580 | J94: 90 | L94: 乳糖 | M94: 广东新会港国际货运码头有限公司 | N94: JMD20030013T01 | O94: 广东华糖实业有限公司 | P94: 2020-03-26 | Q94: 2020-03-26 00:00 | R94: 2020-03-26 | S94: 24.09 | T94: 24.09 | U94: 0 | V94: 0 | W94: CL0200633 | X94: 2020-03-27 10:25 | Y94: 新会港
A95: 业务完结 | B95: 广东华糖实业有限公司 | C95: 广东华糖实业有限公司 | D95: 江门市恒鑫物流有限公司 | E95: 集装箱 | F95: SEGU3264304 | G95: 20GP | H95: 670 | I95: 580 | J95: 90 | L95: 乳糖 | M95: 广东新会港国际货运码头有限公司 | N95: JMD20030013T01 | O95: 广东华糖实业有限公司 | P95: 2020-03-26 | Q95: 2020-03-26 00:00 | R95: 2020-03-26 | S95: 23.98 | T95: 23.98 | U95: 0 | V95: 0 | W95: CL0200633 | X95: 2020-03-27 10:25 | Y95: 新会港
A96: 业务完结 | B96: 广东华糖实业有限公司 | C96: 广东华糖实业有限公司 | D96: 江门市恒鑫物流有限公司 | E96: 集装箱 | F96: SEGU3261305 | G96: 20GP | H96: 670 | I96: 580 | J96: 90 | L96: 乳糖 | M96: 广东新会港国际货运码头有限公司 | N96: JMD20030013T01 | O96: 广东华糖实业有限公司 | P96: 2020-03-26 | Q96: 2020-03-26 00:00 | R96: 2020-03-26 | S96: 24.91 | T96: 24.91 | U96: 0 | V96: 0 | W96: CL0200633 | X96: 2020-03-27 10:25 | Y96: 新会港
A97: 业务完结 | B97: 广东华糖实业有限公司 | C97: 广东华糖实业有限公司 | D97: 江门市恒鑫物流有限公司 | E97: 集装箱 | F97: FTAU1118019 | G97: 20GP | H97: 670 | I97: 580 | J97: 90 | L97: 乳糖 | M97: 广东新会港国际货运码头有限公司 | N97: JMD20030013T01 | O97: 广东华糖实业有限公司 | P97: 2020-03-26 | Q97: 2020-03-26 00:00 | R97: 2020-03-26 | S97: 23.62 | T97: 23.62 | U97: 0 | V97: 0 | W97: CL0200633 | X97: 2020-03-27 10:25 | Y97: 新会港
A98: 业务完结 | B98: 广东华糖实业有限公司 | C98: 广东华糖实业有限公司 | D98: 江门市恒鑫物流有限公司 | E98: 集装箱 | F98: SEGU2911561 | G98: 20GP | H98: 670 | I98: 580 | J98: 90 | L98: 乳糖 | M98: 广东新会港国际货运码头有限公司 | N98: JMD20030013T01 | O98: 广东华糖实业有限公司 | P98: 2020-03-26 | Q98: 2020-03-26 00:00 | R98: 2020-03-26 | S98: 23.82 | T98: 23.82 | U98: 0 | V98: 0 | W98: CL0200633 | X98: 2020-03-27 10:25 | Y98: 新会港
A99: 业务完结 | B99: 广东华糖实业有限公司 | C99: 广东华糖实业有限公司 | D99: 江门市恒鑫物流有限公司 | E99: 集装箱 | F99: SEGU3281997 | G99: 20GP | H99: 670 | I99: 580 | J99: 90 | L99: 乳糖 | M99: 广东新会港国际货运码头有限公司 | N99: JMD20030013T01 | O99: 广东华糖实业有限公司 | P99: 2020-03-26 | Q99: 2020-03-26 00:00 | R99: 2020-03-26 | S99: 24.98 | T99: 24.98 | U99: 0 | V99: 0 | W99: CL0200633 | X99: 2020-03-27 10:25 | Y99: 新会港
A100: 业务完结 | B100: 广东华糖实业有限公司 | C100: 广东华糖实业有限公司 | D100: 江门市恒鑫物流有限公司 | E100: 集装箱 | F100: TEMU0392870 | G100: 20GP | H100: 670 | I100: 580 | J100: 90 | L100: 乳糖 | M100: 广东新会港国际货运码头有限公司 | N100: JMD20030013T01 | O100: 广东华糖实业有限公司 | P100: 2020-03-25 | Q100: 2020-03-25 00:00 | R100: 2020-03-25 | S100: 23.82 | T100: 23.82 | U100: 0 | V100: 0 | W100: CL0200633 | X100: 2020-03-27 10:25 | Y100: 新会港
A101: 业务完结 | B101: 广东华糖实业有限公司 | C101: 广东华糖实业有限公司 | D101: 江门市恒鑫物流有限公司 | E101: 集装箱 | F101: BEAU2922060 | G101: 20GP | H101: 670 | I101: 580 | J101: 90 | L101: 乳糖 | M101: 广东新会港国际货运码头有限公司 | N101: JMD20030013T01 | O101: 广东华糖实业有限公司 | P101: 2020-03-25 | Q101: 2020-03-25 00:00 | R101: 2020-03-25 | S101: 24 | T101: 24 | U101: 0 | V101: 0 | W101: CL0200633 | X101: 2020-03-27 10:25 | Y101: 新会港
A102: 业务完结 | B102: 广东华糖实业有限公司 | C102: 广东华糖实业有限公司 | D102: 江门市恒鑫物流有限公司 | E102: 集装箱 | F102: KMTU7434028 | G102: 20GP | H102: 670 | I102: 580 | J102: 90 | L102: 乳糖 | M102: 广东新会港国际货运码头有限公司 | N102: JMD20030013T01 | O102: 广东华糖实业有限公司 | P102: 2020-03-25 | Q102: 2020-03-25 00:00 | R102: 2020-03-25 | S102: 22.03 | T102: 22.03 | U102: 0 | V102: 0 | W102: CL0200633 | X102: 2020-03-27 10:25 | Y102: 新会港
A103: 业务完结 | B103: 广东华糖实业有限公司 | C103: 广东华糖实业有限公司 | D103: 江门市恒鑫物流有限公司 | E103: 集装箱 | F103: FCIU6492274 | G103: 20GP | H103: 670 | I103: 580 | J103: 90 | L103: 乳糖 | M103: 广东新会港国际货运码头有限公司 | N103: JMD20030013T01 | O103: 广东华糖实业有限公司 | P103: 2020-03-25 | Q103: 2020-03-25 00:00 | R103: 2020-03-25 | S103: 24.29 | T103: 24.29 | U103: 0 | V103: 0 | W103: CL0200633 | X103: 2020-03-27 10:25 | Y103: 新会港
A104: 业务完结 | B104: 广东华糖实业有限公司 | C104: 广东华糖实业有限公司 | D104: 江门市恒鑫物流有限公司 | E104: 集装箱 | F104: FTAU1137847 | G104: 20GP | H104: 670 | I104: 580 | J104: 90 | L104: 乳糖 | M104: 广东新会港国际货运码头有限公司 | N104: JMD20030013T01 | O104: 广东华糖实业有限公司 | P104: 2020-03-25 | Q104: 2020-03-25 00:00 | R104: 2020-03-25 | S104: 23.58 | T104: 23.58 | U104: 0 | V104: 0 | W104: CL0200633 | X104: 2020-03-27 10:25 | Y104: 新会港
A105: 业务完结 | B105: 广东华糖实业有限公司 | C105: 广东华糖实业有限公司 | D105: 江门市恒鑫物流有限公司 | E105: 集装箱 | F105: BMOU1312812 | G105: 20GP | H105: 670 | I105: 580 | J105: 90 | L105: 乳糖 | M105: 广东新会港国际货运码头有限公司 | N105: JMD20030013T01 | O105: 广东华糖实业有限公司 | P105: 2020-03-25 | Q105: 2020-03-25 00:00 | R105: 2020-03-25 | S105: 24.14 | T105: 24.14 | U105: 0 | V105: 0 | W105: CL0200633 | X105: 2020-03-27 10:25 | Y105: 新会港
A106: 业务完结 | B106: 广东华糖实业有限公司 | C106: 广东华糖实业有限公司 | D106: 江门市恒鑫物流有限公司 | E106: 集装箱 | F106: TGBU2530941 | G106: 20GP | H106: 670 | I106: 580 | J106: 90 | L106: 乳糖 | M106: 广东新会港国际货运码头有限公司 | N106: JMD20030013T01 | O106: 广东华糖实业有限公司 | P106: 2020-03-26 | Q106: 2020-03-26 00:00 | R106: 2020-03-26 | S106: 23.81 | T106: 23.81 | U106: 0 | V106: 0 | W106: CL0200633 | X106: 2020-03-27 10:25 | Y106: 新会港
A107: 业务完结 | B107: 广东华糖实业有限公司 | C107: 广东华糖实业有限公司 | D107: 江门市恒鑫物流有限公司 | E107: 集装箱 | F107: UETU2673770 | G107: 20GP | H107: 610 | I107: 520 | J107: 90 | L107: 白糖 | M107: 新会新港 | N107: JMD20030014T01 | O107: 广东华糖实业有限公司 | P107: 2020-03-27 | Q107: 2020-03-27 00:00 | R107: 2020-03-27 | S107: 25 | T107: 25 | U107: 0 | V107: 0 | W107: CL0200633 | X107: 2020-03-30 08:54 | Y107: 新会港
A108: 业务完结 | B108: 广东华糖实业有限公司 | C108: 广东华糖实业有限公司 | D108: 江门市恒鑫物流有限公司 | E108: 集装箱 | F108: CSNU1306870 | G108: 20GP | H108: 610 | I108: 520 | J108: 90 | L108: 白糖 | M108: 新会新港 | N108: JMD20030014T01 | O108: 广东华糖实业有限公司 | P108: 2020-03-26 | Q108: 2020-03-26 00:00 | R108: 2020-03-26 | S108: 25 | T108: 25 | U108: 0 | V108: 0 | W108: CL0200633 | X108: 2020-03-30 08:54 | Y108: 新会港
A109: 业务完结 | B109: 广东华糖实业有限公司 | C109: 广东华糖实业有限公司 | D109: 江门市恒鑫物流有限公司 | E109: 集装箱 | F109: CSNU1603360 | G109: 20GP | H109: 610 | I109: 520 | J109: 90 | L109: 白糖 | M109: 新会新港 | N109: JMD20030014T01 | O109: 广东华糖实业有限公司 | P109: 2020-03-26 | Q109: 2020-03-26 00:00 | R109: 2020-03-26 | S109: 25 | T109: 25 | U109: 0 | V109: 0 | W109: CL0200633 | X109: 2020-03-30 08:53 | Y109: 新会港
A110: 业务完结 | B110: 广东华糖实业有限公司 | C110: 广东华糖实业有限公司 | D110: 江门市恒鑫物流有限公司 | E110: 集装箱 | F110: CSNU1783765 | G110: 20GP | H110: 610 | I110: 520 | J110: 90 | L110: 白糖 | M110: 新会新港 | N110: JMD20030014T01 | O110: 广东华糖实业有限公司 | P110: 2020-03-27 | Q110: 2020-03-27 00:00 | R110: 2020-03-27 | S110: 25 | T110: 25 | U110: 0 | V110: 0 | W110: CL0200633 | X110: 2020-03-30 08:53 | Y110: 新会港
A111: 业务完结 | B111: 广东华糖实业有限公司 | C111: 广东华糖实业有限公司 | D111: 江门市恒鑫物流有限公司 | E111: 集装箱 | F111: CSNU1757196 | G111: 20GP | H111: 550 | I111: 450 | J111: 100 | L111: 白糖 | M111: 新会新港 | N111: JMD20030015T01 | O111: 大昌行保税仓 | P111: 2020-03-26 | Q111: 2020-03-26 00:00 | R111: 2020-03-26 | S111: 25 | T111: 25 | U111: 0 | V111: 0 | W111: CL0200633 | X111: 2020-03-27 10:27 | Y111: 新会新港
A112: 业务完结 | B112: 广东华糖实业有限公司 | C112: 广东华糖实业有限公司 | D112: 江门市恒鑫物流有限公司 | E112: 集装箱 | F112: CAIU6928800 | G112: 20GP | H112: 670 | I112: 580 | J112: 90 | L112: 乳糖 | M112: 广东新会港国际货运码头有限公司 | N112: JMD20030018T01 | O112: 广东华糖实业有限公司 | P112: 2020-03-29 | Q112: 2020-03-29 00:00 | R112: 2020-03-29 | S112: 23.82 | T112: 23.82 | U112: 0 | V112: 0 | W112: CL0200633 | X112: 2020-03-31 10:35 | Y112: 新会港
A113: 业务完结 | B113: 广东华糖实业有限公司 | C113: 广东华糖实业有限公司 | D113: 江门市恒鑫物流有限公司 | E113: 集装箱 | F113: BEAU2838392 | G113: 20GP | H113: 670 | I113: 580 | J113: 90 | L113: 乳糖 | M113: 广东新会港国际货运码头有限公司 | N113: JMD20030018T01 | O113: 广东华糖实业有限公司 | P113: 2020-03-29 | Q113: 2020-03-29 00:00 | R113: 2020-03-29 | S113: 24.12 | T113: 24.12 | U113: 0 | V113: 0 | W113: CL0200633 | X113: 2020-03-31 10:35 | Y113: 新会港
A114: 业务完结 | B114: 广东华糖实业有限公司 | C114: 广东华糖实业有限公司 | D114: 江门市恒鑫物流有限公司 | E114: 集装箱 | F114: SEGU3269780 | G114: 20GP | H114: 670 | I114: 580 | J114: 90 | L114: 乳糖 | M114: 广东新会港国际货运码头有限公司 | N114: JMD20030018T01 | O114: 广东华糖实业有限公司 | P114: 2020-03-29 | Q114: 2020-03-29 00:00 | R114: 2020-03-29 | S114: 24.07 | T114: 24.07 | U114: 0 | V114: 0 | W114: CL0200633 | X114: 2020-03-31 10:35 | Y114: 新会港
A115: 业务完结 | B115: 广东华糖实业有限公司 | C115: 广东华糖实业有限公司 | D115: 江门市恒鑫物流有限公司 | E115: 集装箱 | F115: TGBU2638427 | G115: 20GP | H115: 670 | I115: 580 | J115: 90 | L115: 乳糖 | M115: 广东新会港国际货运码头有限公司 | N115: JMD20030018T01 | O115: 广东华糖实业有限公司 | P115: 2020-03-29 | Q115: 2020-03-29 00:00 | R115: 2020-03-29 | S115: 23.98 | T115: 23.98 | U115: 0 | V115: 0 | W115: CL0200633 | X115: 2020-03-31 10:35 | Y115: 新会港
A116: 业务完结 | B116: 广东华糖实业有限公司 | C116: 广东华糖实业有限公司 | D116: 江门市恒鑫物流有限公司 | E116: 集装箱 | F116: FTAU1049134 | G116: 20GP | H116: 670 | I116: 580 | J116: 90 | L116: 乳糖 | M116: 广东新会港国际货运码头有限公司 | N116: JMD20030018T01 | O116: 广东华糖实业有限公司 | P116: 2020-03-29 | Q116: 2020-03-29 00:00 | R116: 2020-03-29 | S116: 23.95 | T116: 23.95 | U116: 0 | V116: 0 | W116: CL0200633 | X116: 2020-03-31 10:35 | Y116: 新会港
A117: 业务完结 | B117: 广东华糖实业有限公司 | C117: 广东华糖实业有限公司 | D117: 江门市恒鑫物流有限公司 | E117: 集装箱 | F117: FTAU1106506 | G117: 20GP | H117: 670 | I117: 580 | J117: 90 | L117: 乳糖 | M117: 广东新会港国际货运码头有限公司 | N117: JMD20030018T01 | O117: 广东华糖实业有限公司 | P117: 2020-03-29 | Q117: 2020-03-29 00:00 | R117: 2020-03-29 | S117: 24.08 | T117: 24.08 | U117: 0 | V117: 0 | W117: CL0200633 | X117: 2020-03-31 10:35 | Y117: 新会港
A118: 业务完结 | B118: 广东华糖实业有限公司 | C118: 广东华糖实业有限公司 | D118: 江门市恒鑫物流有限公司 | E118: 集装箱 | F118: DFSU1865851 | G118: 20GP | H118: 670 | I118: 580 | J118: 90 | L118: 乳糖 | M118: 广东新会港国际货运码头有限公司 | N118: JMD20030018T01 | O118: 广东华糖实业有限公司 | P118: 2020-03-30 | Q118: 2020-03-30 00:00 | R118: 2020-03-30 | S118: 23.65 | T118: 23.65 | U118: 0 | V118: 0 | W118: CL0200633 | X118: 2020-03-31 10:35 | Y118: 新会港
A119: 业务完结 | B119: 广东华糖实业有限公司 | C119: 广东华糖实业有限公司 | D119: 江门市恒鑫物流有限公司 | E119: 集装箱 | F119: CAIU6919650 | G119: 20GP | H119: 670 | I119: 580 | J119: 90 | L119: 乳糖 | M119: 广东新会港国际货运码头有限公司 | N119: JMD20030018T01 | O119: 广东华糖实业有限公司 | P119: 2020-03-30 | Q119: 2020-03-30 00:00 | R119: 2020-03-30 | S119: 23.97 | T119: 23.97 | U119: 0 | V119: 0 | W119: CL0200633 | X119: 2020-03-31 10:35 | Y119: 新会港
A120: 业务完结 | B120: 广东华糖实业有限公司 | C120: 广东华糖实业有限公司 | D120: 江门市恒鑫物流有限公司 | E120: 集装箱 | F120: SEGU1982909 | G120: 20GP | H120: 670 | I120: 580 | J120: 90 | L120: 乳糖 | M120: 广东新会港国际货运码头有限公司 | N120: JMD20030018T01 | O120: 广东华糖实业有限公司 | P120: 2020-03-30 | Q120: 2020-03-30 00:00 | R120: 2020-03-30 | S120: 23.84 | T120: 23.84 | U120: 0 | V120: 0 | W120: CL0200633 | X120: 2020-03-31 10:35 | Y120: 新会港
A121: 业务完结 | B121: 广东华糖实业有限公司 | C121: 广东华糖实业有限公司 | D121: 江门市恒鑫物流有限公司 | E121: 集装箱 | F121: BSIU2975625 | G121: 20GP | H121: 670 | I121: 580 | J121: 90 | L121: 乳糖 | M121: 广东新会港国际货运码头有限公司 | N121: JMD20030018T01 | O121: 广东华糖实业有限公司 | P121: 2020-03-30 | Q121: 2020-03-30 00:00 | R121: 2020-03-30 | S121: 24.1 | T121: 24.1 | U121: 0 | V121: 0 | W121: CL0200633 | X121: 2020-03-31 10:35 | Y121: 新会港
A122: 业务完结 | B122: 广东华糖实业有限公司 | C122: 广东华糖实业有限公司 | D122: 江门市恒鑫物流有限公司 | E122: 集装箱 | F122: FTAU1052605 | G122: 20GP | H122: 670 | I122: 580 | J122: 90 | L122: 乳糖 | M122: 广东新会港国际货运码头有限公司 | N122: JMD20030018T01 | O122: 广东华糖实业有限公司 | P122: 2020-03-30 | Q122: 2020-03-30 00:00 | R122: 2020-03-30 | S122: 24.14 | T122: 24.14 | U122: 0 | V122: 0 | W122: CL0200633 | X122: 2020-03-31 10:35 | Y122: 新会港
A123: 业务完结 | B123: 广东华糖实业有限公司 | C123: 广东华糖实业有限公司 | D123: 江门市恒鑫物流有限公司 | E123: 集装箱 | F123: FTAU1107586 | G123: 20GP | H123: 670 | I123: 580 | J123: 90 | L123: 乳糖 | M123: 广东新会港国际货运码头有限公司 | N123: JMD20030018T01 | O123: 广东华糖实业有限公司 | P123: 2020-03-30 | Q123: 2020-03-30 00:00 | R123: 2020-03-30 | S123: 23.67 | T123: 23.67 | U123: 0 | V123: 0 | W123: CL0200633 | X123: 2020-03-31 10:35 | Y123: 新会港
A124: 业务完结 | B124: 广东华糖实业有限公司 | C124: 广东华糖实业有限公司 | D124: 江门市恒鑫物流有限公司 | E124: 集装箱 | F124: KMTU7440566 | G124: 20GP | H124: 670 | I124: 580 | J124: 90 | L124: 乳糖 | M124: 广东新会港国际货运码头有限公司 | N124: JMD20030018T01 | O124: 广东华糖实业有限公司 | P124: 2020-03-30 | Q124: 2020-03-30 00:00 | R124: 2020-03-30 | S124: 23.34 | T124: 23.34 | U124: 0 | V124: 0 | W124: CL0200633 | X124: 2020-03-31 10:35 | Y124: 新会港
A125: 业务完结 | B125: 广东华糖实业有限公司 | C125: 广东华糖实业有限公司 | D125: 江门市恒鑫物流有限公司 | E125: 集装箱 | F125: BEAU2921336 | G125: 20GP | H125: 670 | I125: 580 | J125: 90 | L125: 乳糖 | M125: 广东新会港国际货运码头有限公司 | N125: JMD20030018T01 | O125: 广东华糖实业有限公司 | P125: 2020-03-30 | Q125: 2020-03-30 00:00 | R125: 2020-03-30 | S125: 24.21 | T125: 24.21 | U125: 0 | V125: 0 | W125: CL0200633 | X125: 2020-03-31 10:35 | Y125: 新会港
A126: 业务完结 | B126: 广东华糖实业有限公司 | C126: 广东华糖实业有限公司 | D126: 江门市恒鑫物流有限公司 | E126: 集装箱 | F126: TGBU2535100 | G126: 20GP | H126: 670 | I126: 580 | J126: 90 | L126: 乳糖 | M126: 广东新会港国际货运码头有限公司 | N126: JMD20030018T01 | O126: 广东华糖实业有限公司 | P126: 2020-03-30 | Q126: 2020-03-30 00:00 | R126: 2020-03-30 | S126: 23.93 | T126: 23.93 | U126: 0 | V126: 0 | W126: CL0200633 | X126: 2020-03-31 10:36 | Y126: 新会港
A127: 业务完结 | B127: 广东华糖实业有限公司 | C127: 广东华糖实业有限公司 | D127: 江门市恒鑫物流有限公司 | E127: 集装箱 | F127: BMOU1311499 | G127: 20GP | H127: 670 | I127: 580 | J127: 90 | L127: 乳糖 | M127: 广东新会港国际货运码头有限公司 | N127: JMD20030018T01 | O127: 广东华糖实业有限公司 | P127: 2020-03-30 | Q127: 2020-03-30 00:00 | R127: 2020-03-30 | S127: 23.81 | T127: 23.81 | U127: 0 | V127: 0 | W127: CL0200633 | X127: 2020-03-31 10:36 | Y127: 新会港
A128: 业务完结 | B128: 广东华糖实业有限公司 | C128: 广东华糖实业有限公司 | D128: 江门市恒鑫物流有限公司 | E128: 集装箱 | F128: KMTU7453542 | G128: 20GP | H128: 670 | I128: 580 | J128: 90 | L128: 乳糖 | M128: 广东新会港国际货运码头有限公司 | N128: JMD20030018T01 | O128: 广东华糖实业有限公司 | P128: 2020-03-31 | Q128: 2020-03-31 00:00 | R128: 2020-03-31 | S128: 23.98 | T128: 23.98 | U128: 0 | V128: 0 | W128: CL0200633 | X128: 2020-03-31 10:36 | Y128: 新会港
A129: 业务完结 | B129: 广东华糖实业有限公司 | C129: 广东华糖实业有限公司 | D129: 江门市恒鑫物流有限公司 | E129: 集装箱 | F129: FTAU1121413 | G129: 20GP | H129: 670 | I129: 580 | J129: 90 | L129: 乳糖 | M129: 广东新会港国际货运码头有限公司 | N129: JMD20030018T01 | O129: 广东华糖实业有限公司 | P129: 2020-03-31 | Q129: 2020-03-31 00:00 | R129: 2020-03-31 | S129: 24.03 | T129: 24.03 | U129: 0 | V129: 0 | W129: CL0200633 | X129: 2020-03-31 10:36 | Y129: 新会港
A130: 业务完结 | B130: 广东华糖实业有限公司 | C130: 广东华糖实业有限公司 | D130: 江门市恒鑫物流有限公司 | E130: 集装箱 | F130: CAIU3587526 | G130: 20GP | H130: 670 | I130: 580 | J130: 90 | L130: 乳糖 | M130: 广东新会港国际货运码头有限公司 | N130: JMD20030018T01 | O130: 广东华糖实业有限公司 | P130: 2020-03-31 | Q130: 2020-03-31 00:00 | R130: 2020-03-31 | S130: 24.34 | T130: 24.34 | U130: 0 | V130: 0 | W130: CL0200633 | X130: 2020-03-31 10:36 | Y130: 新会港
A131: 业务完结 | B131: 广东华糖实业有限公司 | C131: 广东华糖实业有限公司 | D131: 江门市恒鑫物流有限公司 | E131: 集装箱 | F131: TEMU0270911 | G131: 20GP | H131: 670 | I131: 580 | J131: 90 | L131: 乳糖 | M131: 广东新会港国际货运码头有限公司 | N131: JMD20030018T01 | O131: 广东华糖实业有限公司 | P131: 2020-03-31 | Q131: 2020-03-31 00:00 | R131: 2020-03-31 | S131: 23.58 | T131: 23.58 | U131: =S131-T131 -> 0 | V131: =(S131-T131)/T131 -> 0 | W131: CL0200633 | X131: 2020-03-31 10:36 | Y131: 新会港
A132: 业务完结 | B132: 广州泰来国际货运代理有限公司 | C132: 广州泰来国际货运代理有限公司 | D132: 广州市众泰物流有限公司 | E132: 集装箱 | F132: DRYU9237418 | G132: 40HQ | H132: 1800 | I132: 1750 | J132: 50 | L132: 纸箱 | M132: 南沙二期码头 | N132: QYD20020056T01 | O132: 恒丰泰物流园 | P132: 2020-02-22 | Q132: 2020-02-22 00:00 | R132: 2020-02-22 | S132: 20.5 | T132: 20.5 | U132: 0 | V132: 0 | W132: CL0200025 | X132: 2020-03-31 14:05 | Y132: 南沙珉丰
A133: 业务完结 | B133: 广州泰来国际货运代理有限公司 | C133: 广州泰来国际货运代理有限公司 | D133: 广州市众泰物流有限公司 | E133: 集装箱 | F133: MSDU7503265 | G133: 40HQ | H133: 1650 | I133: 1600 | J133: 50 | L133: 纸箱 | M133: 南沙二期码头 | N133: QYD20020056T01 | O133: 恒丰泰物流园 | P133: 2020-02-22 | Q133: 2020-02-22 00:00 | R133: 2020-02-22 | S133: 20.5 | T133: 20.5 | U133: 0 | V133: 0 | W133: CL0200025 | X133: 2020-03-31 14:05 | Y133: 南沙珉丰
A134: 业务完结 | B134: 广州泰来国际货运代理有限公司 | C134: 广州泰来国际货运代理有限公司 | D134: 广州市众泰物流有限公司 | E134: 集装箱 | F134: MSCU7097753 | G134: 40HQ | H134: 1650 | I134: 1600 | J134: 50 | L134: 纸箱 | M134: 南沙二期码头 | N134: QYD20020056T01 | O134: 恒丰泰物流园 | P134: 2020-02-22 | Q134: 2020-02-22 00:00 | R134: 2020-02-22 | S134: 20.5 | T134: 20.5 | U134: 0 | V134: 0 | W134: CL0200025 | X134: 2020-03-31 14:05 | Y134: 南沙珉丰
A135: 业务完结 | B135: 广州泰来国际货运代理有限公司 | C135: 广州泰来国际货运代理有限公司 | D135: 广州市众泰物流有限公司 | E135: 集装箱 | F135: MSCU7104220 | G135: 40HQ | H135: 1650 | I135: 1600 | J135: 50 | L135: 纸箱 | M135: 南沙二期码头 | N135: QYD20020056T01 | O135: 恒丰泰物流园 | P135: 2020-02-22 | Q135: 2020-02-22 00:00 | R135: 2020-02-22 | S135: 20.5 | T135: 20.5 | U135: 0 | V135: 0 | W135: CL0200025 | X135: 2020-03-31 14:05 | Y135: 南沙珉丰
A136: 业务完结 | B136: 广州泰来国际货运代理有限公司 | C136: 广州泰来国际货运代理有限公司 | D136: 广州市众泰物流有限公司 | E136: 集装箱 | F136: MEDU7573286 | G136: 40HQ | H136: 1650 | I136: 1600 | J136: 50 | L136: 纸箱 | M136: 南沙二期码头 | N136: QYD20020056T01 | O136: 恒丰泰物流园 | P136: 2020-02-23 | Q136: 2020-02-22 00:00 | R136: 2020-02-22 | S136: 20.5 | T136: 20.5 | U136: 0 | V136: 0 | W136: CL0200025 | X136: 2020-03-31 14:05 | Y136: 南沙珉丰
A137: 业务完结 | B137: 广州泰来国际货运代理有限公司 | C137: 广州泰来国际货运代理有限公司 | D137: 广州市众泰物流有限公司 | E137: 集装箱 | F137: TCLU7775770 | G137: 40HQ | H137: 1650 | I137: 1600 | J137: 50 | L137: 纸箱 | M137: 南沙二期码头 | N137: QYD20020056T01 | O137: 恒丰泰物流园 | P137: 2020-02-22 | Q137: 2020-02-22 00:00 | R137: 2020-02-22 | S137: 20.5 | T137: 20.5 | U137: 0 | V137: 0 | W137: CL0200025 | X137: 2020-03-31 14:05 | Y137: 南沙珉丰
A138: 业务完结 | B138: 广州泰来国际货运代理有限公司 | C138: 广州泰来国际货运代理有限公司 | D138: 广州市众泰物流有限公司 | E138: 集装箱 | F138: TCNU1318054 | G138: 40HQ | H138: 1650 | I138: 1600 | J138: 50 | L138: 纸箱 | M138: 南沙二期码头 | N138: QYD20020056T01 | O138: 恒丰泰物流园 | P138: 2020-02-23 | Q138: 2020-02-23 00:00 | R138: 2020-02-23 | S138: 20.5 | T138: 20.5 | U138: 0 | V138: 0 | W138: CL0200025 | X138: 2020-03-31 14:05 | Y138: 南沙珉丰
A139: 业务完结 | B139: 广州泰来国际货运代理有限公司 | C139: 广州泰来国际货运代理有限公司 | D139: 广州市众泰物流有限公司 | E139: 集装箱 | F139: TCNU2463967 | G139: 40HQ | H139: 1650 | I139: 1600 | J139: 50 | L139: 纸箱 | M139: 南沙二期码头 | N139: QYD20020056T01 | O139: 恒丰泰物流园 | P139: 2020-02-23 | Q139: 2020-02-23 00:00 | R139: 2020-02-23 | S139: 20.5 | T139: 20.5 | U139: 0 | V139: 0 | W139: CL0200025 | X139: 2020-03-31 14:05 | Y139: 南沙珉丰
A140: 业务完结 | B140: 广州泰来国际货运代理有限公司 | C140: 广州泰来国际货运代理有限公司 | D140: 广州市众泰物流有限公司 | E140: 集装箱 | F140: MSCU7288220 | G140: 40HQ | H140: 1730 | I140: 1680 | J140: 50 | L140: 纸箱 | M140: 南沙二期码头 | N140: QYD20020056T01 | O140: 恒丰泰物流园 | P140: 2020-02-22 | Q140: 2020-02-22 00:00 | R140: 2020-02-22 | S140: 20.5 | T140: 20.5 | U140: 0 | V140: 0 | W140: CL0200025 | X140: 2020-03-31 14:05 | Y140: 南沙珉丰
A141: 业务完结 | B141: 广州泰来国际货运代理有限公司 | C141: 广州泰来国际货运代理有限公司 | D141: 广州市众泰物流有限公司 | E141: 集装箱 | F141: ZCSU8872186 | G141: 40HQ | H141: 1565 | I141: 1545 | J141: 20 | L141: 纸箱 | M141: 南沙二期码头 | N141: QYD20020058T01 | O141: 中山滨田纸业包装有限公司 | P141: 2020-02-25 | Q141: 2020-02-25 00:00 | R141: 2020-02-25 | S141: 25.236 | T141: 25.236 | U141: 0 | V141: 0 | W141: CL0200025 | X141: 2020-03-31 14:09 | Y141: 南沙珉丰
A142: 业务完结 | B142: 广州泰来国际货运代理有限公司 | C142: 广州泰来国际货运代理有限公司 | D142: 广州市众泰物流有限公司 | E142: 集装箱 | F142: GAOU6118373 | G142: 40HQ | H142: 1200 | I142: 1180 | J142: 20 | L142: 纸箱 | M142: 南沙二期码头 | N142: QYD20020058T01 | O142: 中山滨田纸业包装有限公司 | P142: 2020-02-25 | Q142: 2020-02-25 00:00 | R142: 2020-02-25 | S142: 25.282 | T142: 25.282 | U142: 0 | V142: 0 | W142: CL0200025 | X142: 2020-03-31 14:09 | Y142: 南沙珉丰
A143: 业务完结 | B143: 广州泰来国际货运代理有限公司 | C143: 广州泰来国际货运代理有限公司 | D143: 广州市众泰物流有限公司 | E143: 集装箱 | F143: TGBU5758874 | G143: 40HQ | H143: 1200 | I143: 1180 | J143: 20 | L143: 纸箱 | M143: 南沙二期码头 | N143: QYD20020058T01 | O143: 中山滨田纸业包装有限公司 | P143: 2020-02-25 | Q143: 2020-02-25 00:00 | R143: 2020-02-25 | S143: 25.33 | T143: 25.33 | U143: 0 | V143: 0 | W143: CL0200025 | X143: 2020-03-31 14:09 | Y143: 南沙珉丰
A144: 业务完结 | B144: 广州泰来国际货运代理有限公司 | C144: 广州泰来国际货运代理有限公司 | D144: 广州市众泰物流有限公司 | E144: 集装箱 | F144: DRYU9636193 | G144: 40HQ | H144: 1200 | I144: 1180 | J144: 20 | L144: 纸箱 | M144: 南沙二期码头 | N144: QYD20020058T01 | O144: 中山滨田纸业包装有限公司 | P144: 2020-02-25 | Q144: 2020-02-25 00:00 | R144: 2020-02-25 | S144: 25.264 | T144: 25.264 | U144: 0 | V144: 0 | W144: CL0200025 | X144: 2020-03-31 14:09 | Y144: 南沙珉丰
A145: 业务完结 | B145: 广州泰来国际货运代理有限公司 | C145: 广州泰来国际货运代理有限公司 | D145: 广州市众泰物流有限公司 | E145: 集装箱 | F145: BSIU9691929 | G145: 40HQ | H145: 1200 | I145: 1180 | J145: 20 | L145: 纸箱 | M145: 南沙二期码头 | N145: QYD20020058T01 | O145: 中山滨田纸业包装有限公司 | P145: 2020-02-25 | Q145: 2020-02-25 00:00 | R145: 2020-02-25 | S145: 25.234 | T145: 25.234 | U145: 0 | V145: 0 | W145: CL0200025 | X145: 2020-03-31 14:09 | Y145: 南沙珉丰
A146: 业务完结 | B146: 广州泰来国际货运代理有限公司 | C146: 广州泰来国际货运代理有限公司 | D146: 广州市众泰物流有限公司 | E146: 集装箱 | F146: GCXU5056730 | G146: 40HQ | H146: 1505 | I146: 1485 | J146: 20 | L146: 纸箱 | M146: 南沙二期码头 | N146: QYD20020058T01 | O146: 中山滨田纸业包装有限公司 | P146: 2020-02-25 | Q146: 2020-02-25 00:00 | R146: 2020-02-25 | S146: 25.195 | T146: 25.195 | U146: 0 | V146: 0 | W146: CL0200025 | X146: 2020-03-31 14:09 | Y146: 南沙珉丰
A147: 业务完结 | B147: 广州泰来国际货运代理有限公司 | C147: 广州泰来国际货运代理有限公司 | D147: 广州市众泰物流有限公司 | E147: 集装箱 | F147: GAOU6460030 | G147: 40HQ | H147: 1200 | I147: 1180 | J147: 20 | L147: 纸箱 | M147: 南沙二期码头 | N147: QYD20020058T01 | O147: 中山滨田纸业包装有限公司 | P147: 2020-02-25 | Q147: 2020-02-25 00:00 | R147: 2020-02-25 | S147: 25.063 | T147: 25.063 | U147: 0 | V147: 0 | W147: CL0200025 | X147: 2020-03-31 14:09 | Y147: 南沙珉丰
A148: 业务完结 | B148: 广州泰来国际货运代理有限公司 | C148: 广州泰来国际货运代理有限公司 | D148: 广州市众泰物流有限公司 | E148: 集装箱 | F148: TCNU4048522 | G148: 40HQ | H148: 1200 | I148: 1180 | J148: 20 | L148: 纸箱 | M148: 南沙二期码头 | N148: QYD20020058T01 | O148: 中山滨田纸业包装有限公司 | P148: 2020-02-25 | Q148: 2020-02-25 00:00 | R148: 2020-02-25 | S148: 24.988 | T148: 24.988 | U148: 0 | V148: 0 | W148: CL0200025 | X148: 2020-03-31 14:09 | Y148: 南沙珉丰
A149: 业务完结 | B149: 广州泰来国际货运代理有限公司 | C149: 广州泰来国际货运代理有限公司 | D149: 广州市众泰物流有限公司 | E149: 集装箱 | F149: TGCU0151726 | G149: 40HQ | H149: 1375 | I149: 1355 | J149: 20 | L149: 纸箱 | M149: 南沙二期码头 | N149: QYD20020058T01 | O149: 中山滨田纸业包装有限公司 | P149: 2020-02-25 | Q149: 2020-02-25 00:00 | R149: 2020-02-25 | S149: 25.051 | T149: 25.051 | U149: 0 | V149: 0 | W149: CL0200025 | X149: 2020-03-31 14:09 | Y149: 南沙珉丰
A150: 业务完结 | B150: 广州泰来国际货运代理有限公司 | C150: 广州泰来国际货运代理有限公司 | D150: 广州市众泰物流有限公司 | E150: 集装箱 | F150: ZCSU8248441 | G150: 40HQ | H150: 1375 | I150: 1355 | J150: 20 | L150: 纸箱 | M150: 南沙二期码头 | N150: QYD20020058T01 | O150: 中山滨田纸业包装有限公司 | P150: 2020-02-26 | Q150: 2020-02-26 00:00 | R150: 2020-02-26 | S150: 25.159 | T150: 25.159 | U150: 0 | V150: 0 | W150: CL0200025 | X150: 2020-03-31 14:09 | Y150: 南沙珉丰
A151: 业务完结 | B151: 广州泰来国际货运代理有限公司 | C151: 广州泰来国际货运代理有限公司 | D151: 广州市众泰物流有限公司 | E151: 集装箱 | F151: FSCU8222908 | G151: 40HQ | H151: 1200 | I151: 1180 | J151: 20 | L151: 纸箱 | M151: 南沙二期码头 | N151: QYD20020058T01 | O151: 中山滨田纸业包装有限公司 | P151: 2020-02-25 | Q151: 2020-02-25 00:00 | R151: 2020-02-25 | S151: 25.112 | T151: 25.112 | U151: 0 | V151: 0 | W151: CL0200025 | X151: 2020-03-31 14:09 | Y151: 南沙珉丰
A152: 业务完结 | B152: 广州泰来国际货运代理有限公司 | C152: 广州泰来国际货运代理有限公司 | D152: 广州市众泰物流有限公司 | E152: 集装箱 | F152: ZCSU8215812 | G152: 40HQ | H152: 1200 | I152: 1180 | J152: 20 | L152: 纸箱 | M152: 南沙二期码头 | N152: QYD20020058T01 | O152: 中山滨田纸业包装有限公司 | P152: 2020-02-26 | Q152: 2020-02-26 00:00 | R152: 2020-02-26 | S152: 25.041 | T152: 25.041 | U152: 0 | V152: 0 | W152: CL0200025 | X152: 2020-03-31 14:09 | Y152: 南沙珉丰
A153: 业务完结 | B153: 广州泰来国际货运代理有限公司 | C153: 广州泰来国际货运代理有限公司 | D153: 广州市众泰物流有限公司 | E153: 集装箱 | F153: GAOU6449073 | G153: 40HQ | H153: 1200 | I153: 1180 | J153: 20 | L153: 纸箱 | M153: 南沙二期码头 | N153: QYD20020058T01 | O153: 中山滨田纸业包装有限公司 | P153: 2020-02-26 | Q153: 2020-02-26 00:00 | R153: 2020-02-26 | S153: 25.221 | T153: 25.221 | U153: 0 | V153: 0 | W153: CL0200025 | X153: 2020-03-31 14:09 | Y153: 南沙珉丰
A154: 业务完结 | B154: 广州泰来国际货运代理有限公司 | C154: 广州泰来国际货运代理有限公司 | D154: 广州市众泰物流有限公司 | E154: 集装箱 | F154: TGBU7120385 | G154: 40HQ | H154: 1200 | I154: 1180 | J154: 20 | L154: 纸箱 | M154: 南沙二期码头 | N154: QYD20020058T01 | O154: 中山滨田纸业包装有限公司 | P154: 2020-02-26 | Q154: 2020-02-26 00:00 | R154: 2020-02-26 | S154: 25.386 | T154: 25.386 | U154: 0 | V154: 0 | W154: CL0200025 | X154: 2020-03-31 14:09 | Y154: 南沙珉丰
A155: 业务完结 | B155: 广州泰来国际货运代理有限公司 | C155: 广州泰来国际货运代理有限公司 | D155: 广州市众泰物流有限公司 | E155: 集装箱 | F155: BEAU5163306 | G155: 40HQ | H155: 1200 | I155: 1180 | J155: 20 | L155: 纸箱 | M155: 南沙二期码头 | N155: QYD20020058T01 | O155: 中山滨田纸业包装有限公司 | P155: 2020-02-26 | Q155: 2020-02-26 00:00 | R155: 2020-02-26 | S155: 25.256 | T155: 25.256 | U155: 0 | V155: 0 | W155: CL0200025 | X155: 2020-03-31 14:09 | Y155: 南沙珉丰
A156: 业务完结 | B156: 广州泰来国际货运代理有限公司 | C156: 广州泰来国际货运代理有限公司 | D156: 广州市众泰物流有限公司 | E156: 集装箱 | F156: TCNU2507242 | G156: 40HQ | H156: 1200 | I156: 1180 | J156: 20 | L156: 纸箱 | M156: 南沙二期码头 | N156: QYD20020058T01 | O156: 中山滨田纸业包装有限公司 | P156: 2020-02-26 | Q156: 2020-02-26 00:00 | R156: 2020-02-26 | S156: 25.312 | T156: 25.312 | U156: 0 | V156: 0 | W156: CL0200025 | X156: 2020-03-31 14:09 | Y156: 南沙珉丰
A157: 业务完结 | B157: 广州泰来国际货运代理有限公司 | C157: 广州泰来国际货运代理有限公司 | D157: 广州市众泰物流有限公司 | E157: 集装箱 | F157: BSIU9118990 | G157: 40HQ | H157: 1395 | I157: 1375 | J157: 20 | L157: 纸箱 | M157: 南沙二期码头 | N157: QYD20020058T01 | O157: 中山滨田纸业包装有限公司 | P157: 2020-02-24 | Q157: 2020-02-24 00:00 | R157: 2020-02-24 | S157: 25.361 | T157: 25.361 | U157: 0 | V157: 0 | W157: CL0200025 | X157: 2020-03-31 14:09 | Y157: 南沙珉丰
A158: 业务完结 | B158: 广州泰来国际货运代理有限公司 | C158: 广州泰来国际货运代理有限公司 | D158: 广州市众泰物流有限公司 | E158: 集装箱 | F158: ZCSU8997136 | G158: 40HQ | H158: 3081.6 | I158: 3061.6 | J158: 20 | L158: 纸箱 | M158: 南沙二期码头 | N158: QYD20020058T01 | O158: 中山滨田纸业包装有限公司 | P158: 2020-02-24 | Q158: 2020-02-24 00:00 | R158: 2020-02-24 | S158: 25.202 | T158: 25.202 | U158: 0 | V158: 0 | W158: CL0200025 | X158: 2020-03-31 14:09 | Y158: 南沙珉丰
A159: 业务完结 | B159: 广州泰来国际货运代理有限公司 | C159: 广州泰来国际货运代理有限公司 | D159: 广州市众泰物流有限公司 | E159: 集装箱 | F159: GAOU6044413 | G159: 40HQ | H159: 1200 | I159: 1180 | J159: 20 | L159: 纸箱 | M159: 南沙二期码头 | N159: QYD20020058T01 | O159: 中山滨田纸业包装有限公司 | Q159: 2020-02-26 00:00 | R159: 2020-02-26 | S159: 24.166 | T159: 24.166 | U159: 0 | V159: 0 | W159: CL0200025 | X159: 2020-03-31 14:09 | Y159: 南沙珉丰
A160: 业务完结 | B160: 广州泰来国际货运代理有限公司 | C160: 广州泰来国际货运代理有限公司 | D160: 广州市众泰物流有限公司 | E160: 集装箱 | F160: FCIU8692498 | G160: 40HQ | H160: 1375 | I160: 1355 | J160: 20 | L160: 纸箱 | M160: 南沙二期码头 | N160: QYD20020058T01 | O160: 中山滨田纸业包装有限公司 | P160: 2020-02-24 | Q160: 2020-02-24 00:00 | R160: 2020-02-24 | S160: 25.049 | T160: 25.049 | U160: 0 | V160: 0 | W160: CL0200025 | X160: 2020-03-31 14:09 | Y160: 南沙珉丰
A161: 业务完结 | B161: 广州泰来国际货运代理有限公司 | C161: 广州泰来国际货运代理有限公司 | D161: 广州市众泰物流有限公司 | E161: 集装箱 | F161: FSCU8170255 | G161: 40HQ | H161: 1200 | I161: 1180 | J161: 20 | L161: 纸箱 | M161: 南沙二期码头 | N161: QYD20020058T01 | O161: 中山滨田纸业包装有限公司 | P161: 2020-02-25 | Q161: 2020-02-25 00:00 | R161: 2020-02-25 | S161: 25.201 | T161: 25.201 | U161: 0 | V161: 0 | W161: CL0200025 | X161: 2020-03-31 14:09 | Y161: 南沙珉丰
A162: 业务完结 | B162: 广州泰来国际货运代理有限公司 | C162: 广州泰来国际货运代理有限公司 | D162: 广州市众泰物流有限公司 | E162: 集装箱 | F162: TRLU6573537 | G162: 40HQ | H162: 1795 | I162: 1745 | J162: 50 | L162: 化妆水 | M162: 南沙二期码头 | N162: QYD20030011T01 | O162: 广保通码头 | P162: 2020-03-05 | Q162: 2020-03-05 00:00 | R162: 2020-03-05 | S162: 16.2 | T162: 16.2 | U162: 0 | V162: 0 | W162: CL0200025 | X162: 2020-03-22 18:17 | Y162: 南沙珉丰
A163: 业务完结 | B163: 广州泰来国际货运代理有限公司 | C163: 广州泰来国际货运代理有限公司 | D163: 广州市众泰物流有限公司 | E163: 集装箱 | F163: TCLU9191816 | G163: 40HQ | H163: 1795 | I163: 1745 | J163: 50 | L163: 化妆水 | M163: 南沙二期码头 | N163: QYD20030011T01 | O163: 广保通码头 | P163: 2020-03-05 | Q163: 2020-03-05 00:00 | R163: 2020-03-06 | S163: 16.2 | T163: 16.2 | U163: 0 | V163: 0 | W163: CL0200025 | X163: 2020-03-22 18:17 | Y163: 南沙珉丰
A164: 业务完结 | B164: 广州泰来国际货运代理有限公司 | C164: 广州泰来国际货运代理有限公司 | D164: 广州市众泰物流有限公司 | E164: 集装箱 | F164: HLXU5355319 | G164: 40HQ | H164: 1700 | I164: 1650 | J164: 50 | L164: 化妆水 | M164: 南沙二期码头 | N164: QYD20030011T01 | O164: 广保通码头 | P164: 2020-03-05 | Q164: 2020-03-05 00:00 | R164: 2020-03-05 | S164: 16.2 | T164: 16.2 | U164: 0 | V164: 0 | W164: CL0200025 | X164: 2020-03-22 18:17 | Y164: 南沙珉丰
A165: 业务完结 | B165: 广州泰来国际货运代理有限公司 | C165: 广州泰来国际货运代理有限公司 | D165: 广州市众泰物流有限公司 | E165: 集装箱 | F165: UACU8525672 | G165: 40HQ | H165: 1795 | I165: 1745 | J165: 50 | L165: 化妆水 | M165: 南沙二期码头 | N165: QYD20030011T01 | O165: 广保通码头 | P165: 2020-03-05 | Q165: 2020-03-05 00:00 | R165: 2020-03-05 | S165: 16.2 | T165: 16.2 | U165: 0 | V165: 0 | W165: CL0200025 | X165: 2020-03-22 18:17 | Y165: 南沙珉丰
A166: 业务完结 | B166: 广州泰来国际货运代理有限公司 | C166: 广州泰来国际货运代理有限公司 | D166: 广州市众泰物流有限公司 | E166: 集装箱 | F166: HLXU5201740 | G166: 40HQ | H166: 1795 | I166: 1745 | J166: 50 | L166: 化妆水 | M166: 南沙二期码头 | N166: QYD20030011T01 | O166: 广保通码头 | P166: 2020-03-05 | Q166: 2020-03-05 00:00 | R166: 2020-03-05 | S166: 16.2 | T166: 16.2 | U166: 0 | V166: 0 | W166: CL0200025 | X166: 2020-03-22 18:17 | Y166: 南沙珉丰
A167: 业务完结 | B167: 东莞顶志食品有限公司 | C167: 东莞顶志食品有限公司 | D167: 广州军诚物流有限公司 | E167: 集装箱 | F167: TCLU2383490 | G167: 20GP | H167: 750 | I167: 730 | J167: 20 | L167: 芝麻 | M167: 东江仓码头 | N167: QYD20030027T01 | O167: 东莞顶志食品有限公司 | P167: 2020-03-07 | Q167: 2020-03-07 00:00 | R167: 2020-03-07 | S167: 18.98 | T167: 19.038 | U167: -0.058 | V167: -0.003046538502 | W167: CAR05 | X167: 2020-03-09 17:37 | Y167: 嘉利码头
A168: 业务完结 | B168: 东莞顶志食品有限公司 | C168: 东莞顶志食品有限公司 | D168: 广州军诚物流有限公司 | E168: 集装箱 | F168: MRKU8016075 | G168: 20GP | H168: 750 | I168: 730 | J168: 20 | L168: 芝麻 | M168: 东江仓码头 | N168: QYD20030027T01 | O168: 东莞顶志食品有限公司 | P168: 2020-03-07 | Q168: 2020-03-07 00:00 | R168: 2020-03-07 | S168: 19 | T168: 19.038 | U168: -0.038 | V168: -0.001996007984 | W168: CAR05 | X168: 2020-03-09 17:40 | Y168: 嘉利码头
A169: 业务完结 | B169: 东莞顶志食品有限公司 | C169: 东莞顶志食品有限公司 | D169: 广州军诚物流有限公司 | E169: 集装箱 | F169: MRKU8107642 | G169: 20GP | H169: 750 | I169: 730 | J169: 20 | L169: 芝麻 | M169: 东江仓码头 | N169: QYD20030027T01 | O169: 东莞顶志食品有限公司 | P169: 2020-03-07 | Q169: 2020-03-07 00:00 | R169: 2020-03-07 | S169: 19.08 | T169: 19.038 | U169: 0.042 | V169: 0.002206114088 | W169: CAR05 | X169: 2020-03-09 17:41 | Y169: 嘉利码头
A170: 业务完结 | B170: 东莞顶志食品有限公司 | C170: 东莞顶志食品有限公司 | D170: 广州军诚物流有限公司 | E170: 集装箱 | F170: MSKU7344214 | G170: 20GP | H170: 750 | I170: 730 | J170: 20 | L170: 芝麻 | M170: 东江仓码头 | N170: QYD20030027T01 | O170: 东莞顶志食品有限公司 | P170: 2020-03-07 | Q170: 2020-03-07 00:00 | R170: 2020-03-07 | S170: 18.92 | T170: 19.038 | U170: -0.118 | V170: -0.006198130056 | W170: CAR05 | X170: 2020-03-09 17:39 | Y170: 嘉利码头
A171: 业务完结 | B171: 东莞顶志食品有限公司 | C171: 东莞顶志食品有限公司 | D171: 广州军诚物流有限公司 | E171: 集装箱 | F171: MSKU7974698 | G171: 20GP | H171: 750 | I171: 730 | J171: 20 | L171: 芝麻 | M171: 东江仓码头 | N171: QYD20030045T01 | O171: 东莞顶志食品有限公司 | P171: 2020-03-14 | Q171: 2020-03-14 00:00 | R171: 2020-03-14 | S171: 18.96 | T171: 19 | U171: -0.04 | V171: -0.002105263158 | W171: CAR05 | X171: 2020-03-19 10:55 | Y171: 姬堂堆场
A172: 业务完结 | B172: 东莞顶志食品有限公司 | C172: 东莞顶志食品有限公司 | D172: 广州军诚物流有限公司 | E172: 集装箱 | F172: MRKU9104289 | G172: 20GP | H172: 750 | I172: 730 | J172: 20 | L172: 芝麻 | M172: 东江仓码头 | N172: QYD20030045T01 | O172: 东莞顶志食品有限公司 | P172: 2020-03-14 | Q172: 2020-03-14 00:00 | R172: 2020-03-14 | S172: 18.96 | T172: 19 | U172: -0.04 | V172: -0.002105263158 | W172: CAR05 | X172: 2020-03-16 11:30 | Y172: 姬堂堆场
A173: 业务完结 | B173: 东莞顶志食品有限公司 | C173: 东莞顶志食品有限公司 | D173: 广州军诚物流有限公司 | E173: 集装箱 | F173: MRKU7166147 | G173: 20GP | H173: 750 | I173: 730 | J173: 20 | L173: 芝麻 | M173: 东江仓码头 | N173: QYD20030045T01 | O173: 东莞顶志食品有限公司 | P173: 2020-03-14 | Q173: 2020-03-14 00:00 | R173: 2020-03-14 | S173: 19.1 | T173: 19 | U173: 0.1 | V173: 0.005263157895 | W173: CAR05 | X173: 2020-03-16 11:33 | Y173: 珠吉中集
A174: 业务完结 | B174: 东莞顶志食品有限公司 | C174: 东莞顶志食品有限公司 | D174: 广州军诚物流有限公司 | E174: 集装箱 | F174: MRKU9488374 | G174: 20GP | H174: 750 | I174: 730 | J174: 20 | L174: 芝麻 | M174: 东江仓码头 | N174: QYD20030045T01 | O174: 东莞顶志食品有限公司 | P174: 2020-03-14 | Q174: 2020-03-14 00:00 | R174: 2020-03-14 | S174: 19.02 | T174: 19 | U174: 0.02 | V174: 0.001052631579 | W174: CAR05 | X174: 2020-03-19 10:57 | Y174: 姬堂堆场
A175: 业务完结 | B175: 东莞顶志食品有限公司 | C175: 东莞顶志食品有限公司 | D175: 广州军诚物流有限公司 | E175: 集装箱 | F175: MRKU9232910 | G175: 20GP | H175: 750 | I175: 730 | J175: 20 | L175: 芝麻 | M175: 东江仓码头 | N175: QYD20030045T01 | O175: 东莞顶志食品有限公司 | P175: 2020-03-14 | Q175: 2020-03-14 00:00 | R175: 2020-03-14 | S175: 19.04 | T175: 19 | U175: 0.04 | V175: 0.002105263158 | W175: CAR05 | X175: 2020-03-16 11:28 | Y175: 姬堂堆场
A176: 业务完结 | B176: 东莞顶志食品有限公司 | C176: 东莞顶志食品有限公司 | D176: 广州军诚物流有限公司 | E176: 集装箱 | F176: MRKU7385470 | G176: 20GP | H176: 750 | I176: 730 | J176: 20 | L176: 芝麻 | M176: 东江仓码头 | N176: QYD20030045T01 | O176: 东莞顶志食品有限公司 | P176: 2020-03-14 | Q176: 2020-03-14 00:00 | R176: 2020-03-14 | S176: 19.06 | T176: 19 | U176: 0.06 | V176: 0.003157894737 | W176: CAR05 | X176: 2020-03-16 11:22 | Y176: 珠吉中集
A177: 业务完结 | B177: 广州泰来国际货运代理有限公司 | C177: 广州泰来国际货运代理有限公司 | D177: 广州市众泰物流有限公司 | E177: 集装箱 | F177: HLXU8163496 | G177: 40HQ | H177: 850 | I177: 800 | J177: 50 | L177: 纸浆 | M177: 南沙二期码头 | N177: QYD20030051T01 | O177: 南沙区榄核镇榄灵路176号B仓 | P177: 2020-03-19 | Q177: 2020-03-19 00:00 | R177: 2020-03-19 | S177: 21.5 | T177: 21.5 | U177: 0 | V177: 0 | W177: CL0200025 | X177: 2020-03-22 18:14 | Y177: 南沙二期码头
A178: 业务完结 | B178: 广州泰来国际货运代理有限公司 | C178: 广州泰来国际货运代理有限公司 | D178: 广州市众泰物流有限公司 | E178: 集装箱 | F178: GLDU0643179 | G178: 40HQ | H178: 850 | I178: 800 | J178: 50 | L178: 纸浆 | M178: 南沙二期码头 | N178: QYD20030051T01 | O178: 南沙区榄核镇榄灵路176号B仓 | P178: 2020-03-19 | Q178: 2020-03-19 00:00 | R178: 2020-03-19 | S178: 21.5 | T178: 21.5 | U178: 0 | V178: 0 | W178: CL0200025 | X178: 2020-03-22 18:14 | Y178: 南沙二期码头
A179: 业务完结 | B179: 广州泰来国际货运代理有限公司 | C179: 广州泰来国际货运代理有限公司 | D179: 广州市众泰物流有限公司 | E179: 集装箱 | F179: HLBU2590298 | G179: 40HQ | H179: 850 | I179: 800 | J179: 50 | L179: 纸浆 | M179: 南沙二期码头 | N179: QYD20030051T01 | O179: 南沙区榄核镇榄灵路176号B仓 | P179: 2020-03-18 | Q179: 2020-03-18 00:00 | R179: 2020-03-18 | S179: 21.5 | T179: 21.5 | U179: 0 | V179: 0 | W179: CL0200025 | X179: 2020-03-22 18:14 | Y179: 南沙二期码头
A180: 业务完结 | B180: 广州泰来国际货运代理有限公司 | C180: 广州泰来国际货运代理有限公司 | D180: 广州市众泰物流有限公司 | E180: 集装箱 | F180: UACU5668279 | G180: 40HQ | H180: 850 | I180: 800 | J180: 50 | L180: 纸浆 | M180: 南沙二期码头 | N180: QYD20030051T01 | O180: 南沙区榄核镇榄灵路176号B仓 | P180: 2020-03-19 | Q180: 2020-03-19 00:00 | R180: 2020-03-19 | S180: 21.5 | T180: 21.5 | U180: 0 | V180: 0 | W180: CL0200025 | X180: 2020-03-22 18:14 | Y180: 南沙二期码头
A181: 业务完结 | B181: 广州泰来国际货运代理有限公司 | C181: 广州泰来国际货运代理有限公司 | D181: 广州市众泰物流有限公司 | E181: 集装箱 | F181: HLXU8224204 | G181: 40HQ | H181: 850 | I181: 800 | J181: 50 | L181: 纸浆 | M181: 南沙二期码头 | N181: QYD20030051T01 | O181: 南沙区榄核镇榄灵路176号B仓 | P181: 2020-03-19 | Q181: 2020-03-19 00:00 | R181: 2020-03-19 | S181: 21.5 | T181: 21.5 | U181: 0 | V181: 0 | W181: CL0200025 | X181: 2020-03-22 18:14 | Y181: 南沙二期码头
A182: 业务完结 | B182: 广州泰来国际货运代理有限公司 | C182: 广州泰来国际货运代理有限公司 | D182: 广州市众泰物流有限公司 | E182: 集装箱 | F182: UACU5663240 | G182: 40HQ | H182: 945 | I182: 895 | J182: 50 | L182: 纸浆 | M182: 南沙二期码头 | N182: QYD20030051T01 | O182: 南沙区榄核镇榄灵路176号B仓 | P182: 2020-03-19 | Q182: 2020-03-19 00:00 | R182: 2020-03-19 | S182: 21.5 | T182: 21.5 | U182: 0 | V182: 0 | W182: CL0200025 | X182: 2020-03-22 18:14 | Y182: 南沙珉丰
A183: 业务完结 | B183: 广州泰来国际货运代理有限公司 | C183: 广州泰来国际货运代理有限公司 | D183: 广州市众泰物流有限公司 | E183: 集装箱 | F183: DFSU7483537 | G183: 40HQ | H183: 1050 | I183: 800 | J183: 250 | L183: 纸浆 | M183: 南沙二期码头 | N183: QYD20030051T01 | O183: 南沙区榄核镇榄灵路176号B仓 | P183: 2020-03-18 | Q183: 2020-03-18 00:00 | R183: 2020-03-18 | S183: 21.5 | T183: 21.5 | U183: 0 | V183: 0 | W183: CL0200025 | X183: 2020-03-22 18:14 | Y183: 南沙二期码头
A184: 业务完结 | B184: 广州泰来国际货运代理有限公司 | C184: 广州泰来国际货运代理有限公司 | D184: 广州市众泰物流有限公司 | E184: 集装箱 | F184: FSCU6985808 | G184: 40HQ | H184: 945 | I184: 895 | J184: 50 | L184: 纸浆 | M184: 南沙二期码头 | N184: QYD20030051T01 | O184: 南沙区榄核镇榄灵路176号B仓 | P184: 2020-03-18 | Q184: 2020-03-18 00:00 | R184: 2020-03-18 | S184: 21.5 | T184: 21.5 | U184: 0 | V184: 0 | W184: CL0200025 | X184: 2020-03-22 18:14 | Y184: 南沙珉丰
A185: 业务完结 | B185: 广州泰来国际货运代理有限公司 | C185: 广州泰来国际货运代理有限公司 | D185: 广州市众泰物流有限公司 | E185: 集装箱 | F185: TRLU7224463 | G185: 40HQ | H185: 945 | I185: 895 | J185: 50 | L185: 纸浆 | M185: 南沙二期码头 | N185: QYD20030051T01 | O185: 南沙区榄核镇榄灵路176号B仓 | P185: 2020-03-18 | Q185: 2020-03-18 00:00 | R185: 2020-03-18 | S185: 21.5 | T185: 21.5 | U185: 0 | V185: 0 | W185: CL0200025 | X185: 2020-03-22 18:14 | Y185: 南沙珉丰
A186: 业务完结 | B186: 广州泰来国际货运代理有限公司 | C186: 广州泰来国际货运代理有限公司 | D186: 广州市众泰物流有限公司 | E186: 集装箱 | F186: HLBU1706085 | G186: 40HQ | H186: 850 | I186: 800 | J186: 50 | L186: 纸浆 | M186: 南沙二期码头 | N186: QYD20030051T01 | O186: 南沙区榄核镇榄灵路176号B仓 | P186: 2020-03-18 | Q186: 2020-03-18 00:00 | R186: 2020-03-18 | S186: 21.5 | T186: 21.5 | U186: 0 | V186: 0 | W186: CL0200025 | X186: 2020-03-22 18:14 | Y186: 南沙二期码头
A187: 业务完结 | B187: 广州泰来国际货运代理有限公司 | C187: 广州泰来国际货运代理有限公司 | D187: 广州市众泰物流有限公司 | E187: 集装箱 | F187: UACU5742592 | G187: 40HQ | H187: 850 | I187: 800 | J187: 50 | L187: 纸浆 | M187: 南沙二期码头 | N187: QYD20030051T01 | O187: 南沙区榄核镇榄灵路176号B仓 | P187: 2020-03-18 | Q187: 2020-03-18 00:00 | R187: 2020-03-18 | S187: 21.5 | T187: 21.5 | U187: 0 | V187: 0 | W187: CL0200025 | X187: 2020-03-22 18:14 | Y187: 南沙二期码头
A188: 业务完结 | B188: 广州泰来国际货运代理有限公司 | C188: 广州泰来国际货运代理有限公司 | D188: 广州市众泰物流有限公司 | E188: 集装箱 | F188: DFSU7319890 | G188: 40HQ | H188: 945 | I188: 895 | J188: 50 | L188: 纸浆 | M188: 南沙二期码头 | N188: QYD20030051T01 | O188: 南沙区榄核镇榄灵路176号B仓 | P188: 2020-03-18 | Q188: 2020-03-18 00:00 | R188: 2020-03-18 | S188: 21.5 | T188: 21.5 | U188: 0 | V188: 0 | W188: CL0200025 | X188: 2020-03-22 18:14 | Y188: 南沙珉丰
A189: 业务完结 | B189: 广州泰来国际货运代理有限公司 | C189: 广州泰来国际货运代理有限公司 | D189: 广州市众泰物流有限公司 | E189: 集装箱 | F189: CAIU7942845 | G189: 40HQ | H189: 850 | I189: 800 | J189: 50 | L189: 纸浆 | M189: 南沙二期码头 | N189: QYD20030051T01 | O189: 南沙区榄核镇榄灵路176号B仓 | P189: 2020-03-19 | Q189: 2020-03-19 00:00 | R189: 2020-03-19 | S189: 21.5 | T189: 21.5 | U189: 0 | V189: 0 | W189: CL0200025 | X189: 2020-03-22 18:14 | Y189: 南沙二期码头
A190: 业务完结 | B190: 广州泰来国际货运代理有限公司 | C190: 广州泰来国际货运代理有限公司 | D190: 广州市众泰物流有限公司 | E190: 集装箱 | F190: HAMU1205843 | G190: 40HQ | H190: 850 | I190: 800 | J190: 50 | L190: 纸浆 | M190: 南沙二期码头 | N190: QYD20030051T01 | O190: 南沙区榄核镇榄灵路176号B仓 | P190: 2020-03-19 | Q190: 2020-03-19 00:00 | R190: 2020-03-19 | S190: 21.5 | T190: 21.5 | U190: 0 | V190: 0 | W190: CL0200025 | X190: 2020-03-22 18:14 | Y190: 南沙二期码头
A191: 业务完结 | B191: 广州市牧威饲料有限公司 | C191: 广州市牧威饲料有限公司 | D191: 广州军诚物流有限公司 | E191: 集装箱 | F191: TLLU6104436 | G191: 40HQ | H191: 1550 | I191: 1500 | J191: 50 | L191: 鸡肉粉 | M191: 乌冲码头 | N191: QYD20030088T01 | O191: 倬屿饲料 | P191: 2020-03-28 | Q191: 2020-03-28 00:00 | R191: 2020-03-28 | S191: 25.73 | T191: 25.73 | U191: 0 | V191: 0 | W191: CL0200025 | X191: 2020-03-31 14:09 | Y191: 南岗中集
A192: 业务完结 | B192: 浙江前程石化股份有限公司 | C192: 侨益物流股份有限公司 | D192: 广州军诚物流有限公司 | E192: 集装箱 | H192: 1800 | I192: 1750 | J192: 50 | L192: 线型低密度聚乙烯LLDPE | M192: 广交物流仓 | N192: QYDC20030016F01T0001 | O192: 惠州永发/常州思睿 | P192: 2020-03-18 | Q192: 2020-03-19 00:00 | S192: 15 | T192: 15 | U192: 0 | V192: 0 | W192: CAR05 | X192: 2020-03-25 15:43
A193: 业务完结 | B193: 青岛瑞港集团有限公司 | C193: 侨益物流股份有限公司 | D193: 广州市众泰物流有限公司 | E193: 集装箱 | F193: TCKU6002341 | G193: 40HQ | H193: 350 | I193: 350 | J193: 0 | L193: 甜菜粕 | M193: 南沙二期码头 | N193: QYIC20010026F01T0001 | O193: 南沙龙穴岛仓 | P193: 2020-02-29 | Q193: 2020-02-29 12:31 | R193: 2020-02-29 | S193: 27.41 | T193: 27.52 | U193: -0.11 | V193: -0.003997093023 | W193: CAR08 | X193: 2020-03-01 10:14 | Y193: 南沙二期码头
A194: 业务完结 | B194: 青岛瑞港集团有限公司 | C194: 侨益物流股份有限公司 | D194: 广州市众泰物流有限公司 | E194: 集装箱 | F194: TGBU7213003 | G194: 40HQ | H194: 350 | I194: 350 | J194: 0 | L194: 甜菜粕 | M194: 南沙二期码头 | N194: QYIC20010026F01T0001 | O194: 南沙龙穴岛仓 | P194: 2020-03-02 | Q194: 2020-03-02 08:06 | R194: 2020-03-02 | S194: 27.43 | T194: 27.5 | U194: -0.07 | V194: -0.002545454545 | W194: CL0200534 | X194: 2020-03-05 11:22 | Y194: 南沙二期码头
A195: 业务完结 | B195: 青岛瑞港集团有限公司 | C195: 侨益物流股份有限公司 | D195: 广州市众泰物流有限公司 | E195: 集装箱 | F195: TGBU7162544 | G195: 40HQ | H195: 350 | I195: 350 | J195: 0 | L195: 甜菜粕 | M195: 南沙二期码头 | N195: QYIC20010026F01T0001 | O195: 南沙龙穴岛仓 | P195: 2020-03-02 | Q195: 2020-03-02 07:55 | R195: 2020-03-02 | S195: 27.41 | T195: 27.5 | U195: =S195-T195 -> -0.09 | V195: =(S195-T195)/T195 -> -0.003272727273 | W195: CAR08 | X195: 2020-03-02 15:56 | Y195: 南沙二期码头
A196: 业务完结 | B196: 青岛瑞港集团有限公司 | C196: 侨益物流股份有限公司 | D196: 广州市众泰物流有限公司 | E196: 集装箱 | F196: ZCSU8488442 | G196: 40HQ | H196: 350 | I196: 350 | J196: 0 | L196: 甜菜粕 | M196: 南沙二期码头 | N196: QYIC20010026F01T0001 | O196: 南沙龙穴岛仓 | P196: 2020-02-29 | Q196: 2020-02-29 15:19 | R196: 2020-02-29 | S196: 27.42 | T196: 27.52 | U196: -0.1 | V196: -0.00363372093 | W196: CAR08 | X196: 2020-03-01 10:15 | Y196: 南沙二期码头
A197: 业务完结 | B197: 青岛瑞港集团有限公司 | C197: 侨益物流股份有限公司 | D197: 广州市众泰物流有限公司 | E197: 集装箱 | F197: TLLU5297813 | G197: 40HQ | H197: 350 | I197: 350 | J197: 0 | L197: 甜菜粕 | M197: 南沙二期码头 | N197: QYIC20010026F01T0001 | O197: 南沙龙穴岛仓 | P197: 2020-02-28 | Q197: 2020-02-28 17:45 | R197: 2020-02-28 | S197: 27.48 | T197: 27.54 | U197: -0.06 | V197: -0.002178649237 | W197: CAR08 | X197: 2020-03-02 15:54 | Y197: 南沙二期码头
A198: 业务完结 | B198: 青岛瑞港集团有限公司 | C198: 侨益物流股份有限公司 | D198: 广州市众泰物流有限公司 | E198: 集装箱 | F198: TCNU1058358 | G198: 40HQ | H198: 350 | I198: 350 | J198: 0 | L198: 甜菜粕 | M198: 南沙二期码头 | N198: QYIC20010026F01T0001 | O198: 南沙龙穴岛仓 | P198: 2020-02-29 | Q198: 2020-02-29 11:08 | R198: 2020-02-29 | S198: 27.43 | T198: 27.51 | U198: -0.08 | V198: -0.002908033442 | W198: CAR08 | X198: 2020-03-01 10:15 | Y198: 南沙二期码头
A199: 业务完结 | B199: 青岛瑞港集团有限公司 | C199: 侨益物流股份有限公司 | D199: 广州市众泰物流有限公司 | E199: 集装箱 | F199: GAOU6439326 | G199: 40HQ | H199: 350 | I199: 350 | J199: 0 | L199: 甜菜粕 | M199: 南沙二期码头 | N199: QYIC20010026F01T0001 | O199: 南沙龙穴岛仓 | P199: 2020-02-29 | Q199: 2020-02-29 08:09 | R199: 2020-02-29 | S199: 27.45 | T199: 27.51 | U199: -0.06 | V199: -0.002181025082 | W199: CAR08 | X199: 2020-03-02 15:53 | Y199: 南沙二期码头
A200: 业务完结 | B200: 青岛瑞港集团有限公司 | C200: 侨益物流股份有限公司 | D200: 广州市众泰物流有限公司 | E200: 集装箱 | F200: TCNU1760662 | G200: 40HQ | H200: 350 | I200: 350 | J200: 0 | L200: 甜菜粕 | M200: 南沙二期码头 | N200: QYIC20010026F01T0001 | O200: 南沙龙穴岛仓 | P200: 2020-02-28 | Q200: 2020-02-28 12:54 | R200: 2020-02-28 | S200: 27.42 | T200: 27.5 | U200: -0.08 | V200: -0.002909090909 | W200: CL0200584 | X200: 2020-02-28 17:00 | Y200: 南沙弘运
... 693 more rows

Sheet 分析
A1: 以卸货地作维度作一个联动分析表，分析送货重量，平均短溢率，车辆类型占比，各货类占比（点击货类查到货物明细），车队运输量，对应的客户业务量
A4: 行标签 | B4: 求和项:厂家净重 | C4: 平均值项:短溢率（‰）
A5: 广州六和饲料有限公司 | B5: 79.54 | C5: 0.005279175207
A6: 广东康达尔农牧科技有限公司 | B6: 80.4 | C6: 0.005 | G6: 送货地 | H6: 珠海海壹水产饲料有限公司 | K6: 送货地 | L6: 珠海海壹水产饲料有限公司
A7: 励昌饲料有限公司 | B7: 50.29 | C7: 0.001792828685
A8: 杰大饲料有限公司 | B8: 50.28 | C8: 0.001593625498 | G8: 行标签 | H8: 求和项:厂家净重 | K8: 行标签 | L8: 求和项:厂家净重
A9: 佛山澳纯乳业 | B9: 27.53 | C9: 0.0007270083606 | G9: 集装箱 | H9: 195.69 | K9: 厦门建发物产有限公司 | L9: 195.69
A10: 广州希望饲料有限公司 | B10: 105.81 | C10: 0.0006103350267 | G10: 总计 | H10: 195.69 | K10: 总计 | L10: 195.69
A11: 中山市福大生物科技有限公司 | B11: 58.16 | C11: 0.0004159755649
A12: 嘉吉饲料（佛山）有限公司 | B12: 29.07 | C12: 0.0003441156228
A13: 广东爱生活家居有限公司(东莞市) | B13: 58.67 | C13: 0.0001773056242
A14: 东莞力诚饲料科技有限公司 | B14: 995.9 | C14: 0.0001659500572
A15: 欣濮 | B15: 25 | C15: 0
A16: 汇善（石排镇中坑村） | B16: 24.75 | C16: 0
A17: 广州市番禺区沙湾镇草河村 | B17: 25.5 | C17: 0
A18: 东莞黄江 | B18: 24.75 | C18: 0
A19: 东莞国际塑胶城 | B19: 24.75 | C19: 0
A20: 东莞黄江镇华南塑胶成 | B20: 24.75 | C20: 0
A21: 广州快塑电子商务有限公司（望牛墩） | B21: 24.75 | C21: 0
A22: 东莞黄江镇华南塑胶城 | B22: 36 | C22: 0 | K22: 送货地 | L22: 珠海海壹水产饲料有限公司
A23: 海富仓 | B23: 11872.47 | C23: 0
A24: 东莞建兴 | B24: 24 | C24: 0 | K24: 行标签 | L24: 求和项:厂家净重
A25: 开平市乐振塑料制品有限公司（黄江） | B25: 24.75 | C25: 0 | K25: 江门市恒鑫物流有限公司 | L25: 195.69
A26: 茂名市茂南区恒星塑料制品有限公司 | B26: 81.5 | C26: 0 | K26: 总计 | L26: 195.69
A27: 汕头市塑米供应链管理有限公司（江门） | B27: 26 | C27: 0
A28: 顺联联 | B28: 24.75 | C28: 0
A29: 东莞寮步镇 | B29: 18 | C29: 0
A30: 中山市创鑫亮电子实业有限公司 | B30: 6.5 | C30: 0
A31: 东莞普拉司第三仓库 | B31: 24.75 | C31: 0
A32: 慈溪市德顺容器有限公司（秋长） | B32: 24 | C32: 0
A33: 东莞铨海生物饲料有限公司2 | B33: 122.26 | C33: 0 | K33: 送货地 | L33: 珠海海壹水产饲料有限公司
A34: 广州市远集中港仓储有限公司 | B34: 466.05 | C34: 0
A35: 东莞市晨海塑胶制品有限公司 | B35: 26 | C35: 0 | K35: 行标签 | L35: 求和项:厂家净重 | M35: 平均值项:短溢率（‰） | N35: 最大值项:短溢率（‰） | O35: 最小值项:短溢率（‰）2
A36: 黄江华南塑料城 | B36: 49.5 | C36: 0 | K36: 玉米 | L36: 195.69 | M36: -0.002086837423 | N36: 0.007214598953 | O36: -0.01111111111
A37: 东莞市大岭山罗托泰家具装饰品厂 | B37: 24 | C37: 0 | K37: 总计 | L37: 195.69 | M37: -0.002086837423 | N37: 0.007214598953 | O37: -0.01111111111
A38: 惠州永发/常州思睿 | B38: 15 | C38: 0
A39: 东莞市第三仓库 | B39: 49.5 | C39: 0
A40: 快塑（鹤山） | B40: 24.75 | C40: 0
A41: 东莞市飞帆塑胶制品有限公司 | B41: 24 | C41: 0
A42: 宁波市静和滚塑科技有限公司(花都) | B42: 50 | C42: 0
A43: 东莞市福航塑胶科技有限公司（石排） | B43: 75 | C43: 0
A44: 深圳市龙岗区宝龙街道同德社区 | B44: 22.5 | C44: 0
A45: 东莞市厚街铭利麻中厂 | B45: 53 | C45: 0
A46: 塑米科技（广东）有限公司（珠海） | B46: 49.5 | C46: 0
A47: 东莞市黄江塑胶城 | B47: 24.75 | C47: 0
A48: 肇庆华盈 | B48: 26 | C48: 0
A49: 东莞市黄江镇 | B49: 99 | C49: 0
A50: 广州快塑电子商务有限公司（黄江3） | B50: 24.75 | C50: 0
A51: 东莞市杰森容器制品有限公司 | B51: 15 | C51: 0
A52: 广州兰典威贸易有限公司（惠州） | B52: 26 | C52: 0
A53: 东莞市锦中塑料有限公司 | B53: 50 | C53: 0
A54: 广州市白云清洁用品有限公司 | B54: 34.5 | C54: 0
A55: 东莞市可大纸品有限公司 | B55: 57 | C55: 0
A56: 广州市荣塑塑料贸易有限公司（九江） | B56: 50 | C56: 0
A57: 东莞市南城区蛤地 | B57: 24.75 | C57: 0
A58: 广州兴优力实业有限公司 | B58: 50 | C58: 0
A59: 东莞市诺金塑胶制品有限公司 | B59: 25 | C59: 0
A60: 恒丰泰物流园 | B60: 184.5 | C60: 0
A61: 东莞市尚豪塑胶有限公司 | B61: 50 | C61: 0
A62: 汇善（深圳光明） | B62: 24.75 | C62: 0
A63: 东莞市盛雄光电科技有限公司 | B63: 24 | C63: 0
A64: 惠州惠城 | B64: 24.75 | C64: 0
A65: 东莞市香溢塑化有限公司 | B65: 25 | C65: 0
A66: 江门市宏图建材有限公司 | B66: 26 | C66: 0
A67: 东莞市小白杨化工有限公司 | B67: 25 | C67: 0
A68: 开平市乐振塑料制品有限公司（杏坛） | B68: 24.75 | C68: 0
A69: 东莞市勇兴富五金塑胶有限公司 | B69: 10 | C69: 0
A70: 东莞博源滚塑料科技有限公司 | B70: 12 | C70: 0
A71: 东莞市宇洁塑胶原料有限公司（东莞） | B71: 25 | C71: 0
A72: 宁波酷尔塑料（花都） | B72: 25 | C72: 0
A73: 东莞雄亚塑料有限公司 | B73: 50 | C73: 0
A74: 日宏 | B74: 24.75 | C74: 0
A75: 东莞长安乌沙 | B75: 18 | C75: 0
A76: 上海亚星塑胶容器有限公司（炭步） | B76: 25 | C76: 0
A77: 东莞中塑仓库 | B77: 50 | C77: 0
A78: 深圳市深捷通管业发展有限公司 | B78: 78 | C78: 0
A79: 崇成 | B79: 24.75 | C79: 0
A80: 塑米科技（广东）有限公司（狮山） | B80: 24.75 | C80: 0
A81: 佛山大良 | B81: 18 | C81: 0
A82: 塑米科技（广东）有限公司5 | B82: 49.5 | C82: 0
A83: 佛山德福塑料城 | B83: 36 | C83: 0
A84: 盈元 | B84: 20 | C84: 0
A85: 佛山南海九江 | B85: 18 | C85: 0
A86: 致华 | B86: 24.75 | C86: 0
A87: 佛山南海西樵大同 | B87: 24.75 | C87: 0
A88: 广州快塑电子商务有限公司（佛山南海） | B88: 48 | C88: 0
A89: 佛山南海下柏工业区 | B89: 25.5 | C89: 0
A90: 鞍钢联众（广州）不锈钢有限公司 | B90: 23846.4 | C90: 0
A91: 佛山三水 | B91: 25.5 | C91: 0
A92: 广州兰典威贸易有限公司（佛山） | B92: 26 | C92: 0
A93: 佛山狮山松岗龙头工业区 | B93: 18 | C93: 0
A94: 广州兰典威贸易有限公司（清远） | B94: 52 | C94: 0
A95: 佛山市金明诺塑胶有限公司 | B95: 24.75 | C95: 0
A96: 广州赛聚新材料有限公司-2 | B96: 24 | C96: 0
A97: 佛山市南海金塑美环保塑料制品有限公司 | B97: 24 | C97: 0
A98: 广州市淳海塑料有限公司 | B98: 130 | C98: 0
A99: 佛山市顺德区北滘 桃村工业区十八丘十号 | B99: 22.5 | C99: 0
A100: 广州市荔湾区海龙街东联路40号V3栋 | B100: 64 | C100: 0
A101: 佛山市顺德区北塑贸易有限公司 | B101: 75 | C101: 0
A102: 广州市雨的塑料制品有限公司 | B102: 25 | C102: 0
A103: 佛山市顺德区德建塑料管道制造有限公司 | B103: 148.5 | C103: 0
A104: 大昌行保税仓 | B104: 25 | C104: 0
A105: 佛山市顺德区乐从 德富塑料城 | B105: 51 | C105: 0
A106: 广州挚腾物流仓库 | B106: 15.2 | C106: 0
A107: 佛山市顺德区乐从镇 | B107: 99 | C107: 0
A108: 杭州舒寅贸易有限公司（中山） | B108: 24 | C108: 0
A109: 佛山市顺德区杏坛桑麻绿田塑料厂（桑麻村大道） | B109: 24.75 | C109: 0
A110: 华润丰 | B110: 24.75 | C110: 0
A111: 佛山闻学贸易有限公司 | B111: 51 | C111: 0
A112: 汇善（乐从） | B112: 24.75 | C112: 0
A113: 佛山闻学贸易有限公司（黄埔） | B113: 25.5 | C113: 0
A114: 汇善（石排镇） | B114: 49.5 | C114: 0
A115: 佛山闻学贸易有限公司（九江） | B115: 25.5 | C115: 0
A116: 惠东县吉隆镇平政新汰 | B116: 17 | C116: 0
A117: 佛山新丰 | B117: 24 | C117: 0
A118: 惠州市惠城区横沥镇 | B118: 22.5 | C118: 0
A119: 广保通码头 | B119: 81 | C119: 0
A120: 东莞丰采塑胶制品有限公司 | B120: 5 | C120: 0
A121: 德富塑料城 | B121: 24.75 | C121: 0
A122: 东莞凤岗官井头 | B122: 18 | C122: 0
A123: 靖江市南洋化工物资 | B123: 24 | C123: 0
A124: 靖江市南洋化工物资有限公司 | B124: 43.2 | C124: 0
A125: 广东成通新型管业有限公司 | B125: 110 | C125: 0
A126: 开平市乐振塑料制品有限公司（里水） | B126: 24.75 | C126: 0
A127: 广东弘擎电子材料科技有限公司 | B127: 25.5 | C127: 0
A128: 康泰塑胶科技集团（广东）有限公司 | B128: 49.5 | C128: 0
A129: 广东华糖实业有限公司 | B129: 1996.93 | C129: 0
A130: 立新复合材料科技有限公司 | B130: 22.5 | C130: 0
A131: 广东汇善实业有限公司（南海） | B131: 24.75 | C131: 0
A132: 龙头山钢材物流基地 | B132: 990.788 | C132: 0
A133: 广东巨隆防腐设备有限公司 | B133: 25 | C133: 0
A134: 南沙区榄核镇榄灵路176号B仓 | B134: 301 | C134: 0
A135: 慈溪市德顺容器有限公司 | B135: 50 | C135: 0
A136: 宁波色美佳 | B136: 10 | C136: 0
A137: 广东联弘管业有限公司 | B137: 515 | C137: 0
A138: 清远市清新区太和镇 | B138: 22.5 | C138: 0
A139: 广东普什 | B139: 198 | C139: 0
A140: 瑞阳麻中底厂 | B140: 53 | C140: 0
A141: 广东普什（增城） | B141: 49.5 | C141: 0
A142: 上海亚星塑胶容器有限公司 | B142: 25 | C142: 0
A143: 广东省佛山市顺德区陈村永兴工业区2路10号 | B143: 32 | C143: 0
A144: 深圳市鸿泰美贸易有限公司 | B144: 25 | C144: 0
A145: 广东炜林纳新材料科技股份有限公司 | B145: 25 | C145: 0
A146: 深圳市瑞鸿祥贸易有限公司 | B146: 25 | C146: 0
A147: 广东新会港国际货运码头有限公司 | B147: 100 | C147: 0
A148: 顺德杏坛 | B148: 16 | C148: 0
A149: 广东新嘉源塑胶有限公司（江门） | B149: 26 | C149: 0
A150: 塑汇 | B150: 24.75 | C150: 0
A151: 广东毅马集团公司 | B151: 1323.075 | C151: 0
A152: 塑米科技（广东）有限公司（仙村） | B152: 24.75 | C152: 0
A153: 广东永益复合材料有限公司 | B153: 130 | C153: 0
A154: 塑米科技（广东）有限公司4 | B154: 74.25 | C154: 0
A155: 广浚仓 | B155: 1884.86 | C155: 0
A156: 台州市东电橡塑有限公司 | B156: 23.375 | C156: 0
A157: 广州番禺石基泰安路 | B157: 25.5 | C157: 0
A158: 易发物流 | B158: 25.5 | C158: 0
A159: 广州弘悦塑胶五金制品有限公司 | B159: 50 | C159: 0
A160: 鱼珠仓 | B160: 2401.83 | C160: 0
A161: 中山市东升镇 | B161: 27 | C161: 0
A162: 瑧伟 | B162: 25 | C162: 0
A163: 中山市横栏镇冲东路 | B163: 25.5 | C163: 0
A164: 中山滨田纸业包装有限公司 | B164: 528.109 | C164: 0
A165: 珠海市鼎胜胶粘塑料环保科技有限公司 | B165: 27 | C165: 0
A166: 东莞昌和箱包制品有限公司 | B166: 10 | C166: 0
A167: 广州快塑电子商务有限公司（佛山乐从） | B167: 24.75 | C167: 0
A168: 广州黄埔启福物流仓 | B168: 1313.98 | C168: 0
A169: 中山市杰帆塑料制品有限公司 | B169: 24 | C169: 0
A170: 广州慧正智联科技有限公司（九江） | B170: 24.75 | C170: 0
A171: 倬屿饲料 | B171: 25.73 | C171: 0
A172: 广州快塑电子商务有限公司 | B172: 24.75 | C172: 0
A173: 广州快塑电子商务有限公司（南海平洲） | B173: 24.75 | C173: 0
A174: 广州市骏宝饲料有限公司 | B174: 378.53 | C174: -0.000152929528
A175: 东莞顶志食品有限公司 | B175: 190.12 | C175: -0.0001666141401
A176: 佛山储备新库 | B176: 10335.36 | C176: -0.0003292553069
A177: 广州番禺灵川饲料有限公司 | B177: 180.28 | C177: -0.0004450346842
A178: 珠海海龙生物科技有限公司 | B178: 1809.57 | C178: -0.0005409199508
A179: 明珠仓 | B179: 2100.6 | C179: -0.0006292211711
A180: 东莞铨海生物饲料有限公司 | B180: 325.32 | C180: -0.0007139070803
A181: 江门市新会区奥特饲料有限公司 | B181: 50.5 | C181: -0.000761614623
A182: 江门市昊昌生物科技有限公司 | B182: 280.47 | C182: -0.0008021498671
A183: 东莞嘉吉粮油有限公司 | B183: 366.72 | C183: -0.0009835487927
A184: 广州市江丰实业股份有限公司 | B184: 222.98 | C184: -0.001048265466
A185: 佛山市顺德区福品饲料实业有限公司 | B185: 127.3 | C185: -0.001172815322
A186: 江门海大饲料有限公司 | B186: 312.54 | C186: -0.001216829261
A187: 广州市海维饲料有限公司 | B187: 261.57 | C187: -0.001411197911
A188: 红五月奶牛场 | B188: 54.93 | C188: -0.001454214996
A189: 台山市向星饲料有限公司 | B189: 25.59 | C189: -0.001950078003
A190: 珠海海壹水产饲料有限公司 | B190: 195.69 | C190: -0.002086837423
A191: 东莞市广源饲料有限公司 | B191: 55.67 | C191: -0.002341431453
A192: 东莞铨海生物饲料有限公司4 | B192: 550.089 | C192: -0.003937135843
A193: 广州海行饲料有限公司 | B193: 277.76 | C193: -0.004434307252
A194: 江门市英海饲料有限公司 | B194: 2019.34 | C194: -0.007144951761
A195: 广东顺德广顺饲料有限公司 | B195: 26.44 | C195: -0.01471958263
A196: 江门市海和饲料有限公司 | B196: 162.29 | C196: -0.02606596039
A197: 南沙龙穴岛仓 | B197: 1642.41 | C197: -0.02827892526
A198: 江门市丰实饲料有限公司 | B198: 813.88 | C198: -0.03249556595
A199: 金钱饲料（东莞）有限公司 | B199: 27.6 | C199: -0.05898397545
A200: 总计 | B200: 77305.456 | C200: -0.004214122422
